Workbook

Sheet Menu
C6: Gestion, mode d'emploi
C7: Menu des cas et des corrigés
C9: Instructions générales | E9: La saisie dans les feuilles n'est autorisée que dans les cellules sur fond vert. Vous pouvez ainsi faire varier les données d'origine (prix de vente, taux de marge, délais clients, etc.) et en visualiser immédiatement les conséquences.
E10: Pour forcer cette sécurité et modifier n'importe quelle cellule, il suffit d'ôter la protection de la feuille (clic droit sur l'onglet de la feuille, puis Ôter la protection de la feuille).
E11: Il est conseillé d'enregistrer une copie de ce classeur avant de commencer à l'utiliser.
C13: Navigation | E13: Pour se rendre directement sur un chapitre ou un onglet, il suffit de cliquer sur son nom dans la liste ci-dessous.
E14: Pour réafficher ce menu, faire CRTL+MAJ+M. Penser à activer les macros à l'ouverture de ce classeur.
C16: Chapitre
E17: Cas (en cours de chapitre) | K17: Exercices (en fin de chapitre)
C18: La Comptabilité générale | E18: Cas comptabilité | K18: Exercice comptabilité
E19: Cas TVA
E20: Cas tableau flux trésorerie
C22: L'analyse financière | K22: Exercice Biovie
K23: Exercice BioLife
C25: La comptabilité analytique | E25: Cas Pizza | K25: Exercice Promo
E26: Cas Manon | K26: Exercice BigPlus
E27: Cas Promo | K27: Exercice FormaPlus
E28: Cas seuil de rentabilité | K28: Exercice 3 projets
E29: Cas coûts indirects | K29: Exercice SudMoto
E30: Cas coûts fixes
C32: Le business plan financier | E32: Cas business plan | K32: Exercice business plan
E33: Formules emprunt
C35: La rentabilité des investissements | E35: Cas investissement | K35: Exercice retour investissement € constants
E36: Cas actualisation | K36: Exercice projet réfection
C38: Les questionnaires | K38: Corrigé questionnaire

Sheet Cas compta
B2: Page 31 | X2: Page 48
B3: BILAN AU 31/01/N | K3: COMPTE DE RÉSULTAT DU 01/01/N AU 31/01/N | X3: TABLEAU DE BORD COMPTABLE
B4: Financier | K4: Économique | X4: Résultat | Z4: Tréso | AA4: Capital | AB4: Chiffre d'aff.
C5: BIENS | F5: DETTES | L5: CHARGES | S5: PRODUITS | X5: opération | Y5: cumulé | AB5: cumulé
W6: 1 | X6: 0 | Y6: 0 | Z6: 50 | AA6: 50 | AB6: 0
C7: IMMO. | G7: CAPITAL | L7: MATIÈRES | O7: CONSO STK. | S7: VENTES | W7: 2 | X7: -5 | Y7: -5 | Z7: 45 | AA7: 50 | AB7: 0
H8: 50 | I8: 1 | K8: 3 | L8: 15 | T8: 45 | U8: 6 | W8: 3 | X8: -15 | Y8: -20 | Z8: 30 | AA8: 50 | AB8: 0
W9: 4 | X9: -20 | Y9: -40 | Z9: 10 | AA9: 50 | AB9: 0
C10: STOCKS | G10: RÉSULTAT | W10: 5 | X10: -10 | Y10: -50 | Z10: 0 | AA10: 50 | AB10: 0
H11: =+C8+C11+C14+C15+C16+C17+C20+C21+C22+C23+C24+C25+C26+C27+C28+C29+G8+G11+G14+G17+G18+G19+G20-D8-D11-D14-D15-D16-D17-D20-D21-D22-D23-D24-D25-D26-D27-D28-D29-H8-H14-H17-H18-H19-H20 -> -5 | L11: SALAIRES | O11: LOCATIONS | W11: 6 | X11: 45 | Y11: -5 | Z11: 0 | AA11: 50 | AB11: 45
K12: 4 | L12: 20 | N12: 2 | O12: 5 | W12: 7 | X12: 0 | Y12: -5 | Z12: 25 | AA12: 50 | AB12: 45
C13: CLIENTS | G13: EMPRUNTS | N13: 5 | O13: 10 | W13: 8 | X13: -10 | Y13: -15 | Z13: 25 | AA13: 50 | AB13: 45
B14: 6 | C14: 45 | W14: 9 | X14: -35 | Y14: -50 | Z14: 25 | AA14: 50 | AB14: 45
L15: IMPÔTS | W15: 10 | X15: -40 | Y15: -90 | Z15: -15 | AA15: 50 | AB15: 45
G16: FOURN. | W16: 11 | X16: 110 | Y16: 20 | Z16: -15 | AA16: 50 | AB16: 155
W17: 12 | X17: 0 | Y17: 20 | Z17: 30 | AA17: 50 | AB17: 155
L18: DOTATIONS AUX | W18: 13 | X18: 0 | Y18: 20 | Z18: 30 | AA18: 50 | AB18: 155
C19: + TRÉSO - | L19: AMORTISS. | O19: PROVISIONS | W19: 14 | X19: 5 | Y19: 25 | Z19: 30 | AA19: 50 | AB19: 180
B20: 1 | C20: 50 | D20: 5 | E20: 2 | W20: 15 | X20: 0 | Y20: 25 | Z20: 140 | AA20: 50 | AB20: 180
D21: 15 | E21: 3 | W21: 16 | X21: 0 | Y21: 25 | Z21: 35 | AA21: 50 | AB21: 180
D22: 20 | E22: 4 | L22: HORS EXPLOITATION | W22: 17 | X22: -1 | Y22: 24 | Z22: 34 | AA22: 50 | AB22: 180
D23: 10 | E23: 5 | L23: PERTES | O23: INTERETS | W23: 18 | X23: -4 | Y23: 20 | Z23: 34 | AA23: 50 | AB23: 180
W24: 19 | X24: -3 | Y24: 17 | Z24: 30 | AA24: 50 | AB24: 180
W25: 20 | X25: -1 | Y25: 16 | Z25: 30 | AA25: 50 | AB25: 180
W26: 21 | X26: 0 | Y26: 16 | Z26: 15 | AA26: 50 | AB26: 180
W27: 22 | X27: -10 | Y27: 6 | Z27: 15 | AA27: 50 | AB27: 180
B32: Page 40 | X32: Page 53
B33: BILAN AU 30/09/N | K33: COMPTE DE RÉSULTAT DU 01/01/N AU 30/09/N | X33: Écriture d'affectation du résultat
B34: Financier | K34: Économique | X34: Ventes | Y34: =+T68+T69+T70 -> 180 | Z34: =+L38+L39 -> 50 | AA34: Matières
C35: BIENS | F35: DETTES | L35: CHARGES | S35: PRODUITS | Z35: =+L72+L73 -> 60 | AA35: Salaires
Z36: =+L76 -> 10 | AA36: Impôts
C37: IMMO. | G37: CAPITAL | L37: MATIÈRES | O37: CONSO STK. | S37: VENTES | Z37: =+L80 -> 10 | AA37: Amortissements
B38: 8 | C38: 70 | D38: 10 | E38: 8' | H38: 50 | I38: 1 | K38: 3 | L38: 15 | N38: 14' | O38: 20 | T38: 45 | U38: 6 | Z38: =+L84 -> 4 | AA38: Pertes
K39: 9 | L39: 35 | T39: 110 | U39: 11 | Z39: =+O68 -> 20 | AA39: Conso stk
C40: STOCKS | G40: RÉSULTAT | T40: 25 | U40: 14 | Z40: =+O72+O73 -> 15 | AA40: Locations
B41: 13 | C41: 30 | D41: 20 | E41: 14' | L41: SALAIRES | O41: LOCATIONS | Z41: =+O80 -> 1 | AA41: Provisions
K42: 4 | L42: 20 | N42: 2 | O42: 5 | Z42: =+O84+O85 -> 4 | AA42: Intérêts
C43: CLIENTS | G43: EMPRUNTS | K43: 10 | L43: 40 | N43: 5 | O43: 10 | Z43: =+AA49 -> 6 | AA43: Résultat
B44: 6 | C44: 45 | D44: 45 | E44: 12 | H44: 25 | I44: 7 | X44: TOTAL | Y44: =SUM(Y34:Y43) -> 180 | Z44: =SUM(Z34:Z43) -> 180 | AA44: TOTAL
B45: 11 | C45: 110 | D45: 110 | E45: 15 | L45: IMPÔTS
B46: 14 | C46: 25 | G46: FOURN. | X46: Page 54
F47: 16 | G47: 70 | H47: 70 | I47: 8 | X47: Bilan synthétique au 31/12/N
F48: 16 | G48: 35 | H48: 35 | I48: 9 | L48: DOTATIONS AUX | X48: Immo | Y48: =+C68-D68 -> 60 | Z48: Capital | AA48: =+H8 -> 50
C49: + TRÉSO - | H49: 30 | I49: 13 | L49: AMORTISS. | O49: PROVISIONS | X49: Stocks | Y49: =+C41-D41 -> 10 | Z49: Résultat | AA49: =+AA52-AA51-AA50-AA48 -> 6
B50: 1 | C50: 50 | D50: 5 | E50: 2 | K50: 8' | L50: 10 | X50: Clients | Y50: =+C74+C75+C76-D74-D75-D76-D77 -> 20 | Z50: Emprunt | AA50: =+H74-G74 -> 24
B51: 7 | C51: 25 | D51: 15 | E51: 3 | X51: Tréso | Y51: =+C80+C81+C82+C83-D80-D81-D82-D83-D84-D85-D86-D87-D88-D89 -> 15 | Z51: Fourn | AA51: =+H77+H78+H79+H80-G77-G78-G79 -> 25
B52: 12 | C52: 45 | D52: 20 | E52: 4 | L52: HORS EXPLOITATION | X52: Total | Y52: =SUM(Y48:Y51) -> 105 | Z52: Total | AA52: =+Y52 -> 105
B53: 15 | C53: 110 | D53: 10 | E53: 5 | L53: PERTES | O53: INTÉRÊTS
D54: 40 | E54: 10
D55: 70 | E55: 16
D56: 35 | E56: 16
B62: Page 48
B63: BILAN AU 31/12/N | K63: COMPTE DE RESULTAT DU 01/01/N AU 31/12/N
B64: Financier | K64: Économique
C65: BIENS | F65: DETTES | L65: CHARGES | S65: PRODUITS
C67: IMMO. | G67: CAPITAL | L67: MATIÈRES | O67: CONSO STK. | S67: VENTES
B68: 8 | C68: 70 | D68: 10 | E68: 8' | H68: 50 | I68: 1 | K68: 3 | L68: 15 | N68: 14' | O68: 20 | T68: 45 | U68: 6
K69: 9 | L69: 35 | T69: 110 | U69: 11
C70: STOCKS | G70: RÉSULTAT | T70: 25 | U70: 14
B71: 13 | C71: 30 | D71: 20 | E71: 14' | H71: =+C68+C71+C74+C75+C76+C77+C80+C81+C82+C83+C84+C85+C86+C87+C88+C89+G68+G71+G74+G77+G78+G79+G80-D68-D71-D74-D75-D76-D77-D80-D81-D82-D83-D84-D85-D86-D87-D88-D89-H68-H74-H77-H78-H79-H80 -> 6 | L71: SALAIRES | O71: LOCATIONS
K72: 4 | L72: 20 | N72: 2 | O72: 5
C73: CLIENTS | G73: EMPRUNTS | K73: 10 | L73: 40 | N73: 5 | O73: 10
B74: 6 | C74: 45 | D74: 45 | E74: 12 | F74: 19 | G74: 1 | H74: 25 | I74: 7
B75: 11 | C75: 110 | D75: 110 | E75: 15 | L75: IMPÔTS
B76: 14 | C76: 25 | D76: 4 | E76: 18 | G76: FOURN. | K76: 22 | L76: 10
D77: 1 | E77: 20 | F77: 16 | G77: 70 | H77: 70 | I77: 8
F78: 16 | G78: 35 | H78: 35 | I78: 9 | L78: DOTATIONS AUX
C79: + TRÉSO - | F79: 21 | G79: 15 | H79: 30 | I79: 13 | L79: AMORTISS. | O79: PROVISIONS
B80: 1 | C80: 50 | D80: 5 | E80: 2 | H80: 10 | I80: 22 | K80: 8' | L80: 10 | N80: 20 | O80: 1
B81: 7 | C81: 25 | D81: 15 | E81: 3
B82: 12 | C82: 45 | D82: 20 | E82: 4 | L82: HORS EXPLOITATION
B83: 15 | C83: 110 | D83: 10 | E83: 5 | L83: PERTES | O83: INTERETS
D84: 40 | E84: 10 | K84: 18 | L84: 4 | N84: 17 | O84: 1
D85: 70 | E85: 16 | N85: 19 | O85: 3
D86: 35 | E86: 16
D87: 1 | E87: 17
D88: 4 | E88: 19
D89: 15 | E89: 21

Sheet Cas TVA
C2: Page 63
C3: Taux de TVA | D3: 0.2
B5: BILAN AU ../../.. | K5: COMPTE DE RESULTAT DU ../../.. AU ../../..
B6: financier | K6: financier
C7: BIENS | F7: DETTES | L7: BIENS | O7: DETTES
C9: Clients | G9: Fournisseurs | L9: Achats | P9: Ventes
C10: =+Q10*(1+D3) -> 360 | H10: =+L10*(1+D3) -> 240 | L10: 200 | Q10: 300
C12: Trésorerie | G12: TVA
D13: =+G14 -> 20 | G13: =+H10-L10 -> 40 | H13: =+C10-Q10 -> 60
G14: =+H13-G13 -> 20

Sheet Cas tableau flux tréso
B2: Page 64
B3: Bilan de début de période | G3: Bilan de fin de période
B4: Immo | C4: 50 | D4: Capital | E4: 50 | G4: Immo | H4: 55 | I4: Capital | J4: 56
B5: Stocks | C5: 10 | D5: Résultat | E5: 6 | G5: Stocks | H5: 15 | I5: Résultat | J5: 7
B6: Clients | C6: 15 | D6: Emprunt | E6: 15 | G6: Clients | H6: 5 | I6: Emprunt | J6: 9
B7: Tréso | C7: 21 | D7: Fourn | E7: 25 | G7: Tréso | H7: 12 | I7: Fourn | J7: 15
B8: Total | C8: =SUM(C4:C7) -> 96 | D8: Total | E8: =SUM(E4:E7) -> 96 | G8: Total | H8: =SUM(H4:H7) -> 87 | I8: Total | J8: =SUM(J4:J7) -> 87
D10: Compte de résultat de la période
D11: Chiffre d'affaires | H11: 1000
D12: - Charges (hors amortissement et financier) | H12: -980
D13: - Amortissements | H13: -10
D14: - Frais financiers | H14: -5
D15: = Résultat | H15: =SUM(H11:H14) -> 5
B17: Tableau des flux de trésorerie
B18: Solde de trésorerie au début | H18: =+C7 -> 21
B19: =+D11 -> Chiffre d'affaires | H19: =+H11 -> 1000
B20: Charges (hors amortissement et financier) | H20: =+H12 -> -980
B21: Frais financiers | H21: =+H14 -> -5
B22: Variation des immobilisations | H22: =-H4+(C4+H13) -> -15
B23: Variation des stocks | H23: =+C5-H5 -> -5
B24: Variation de clients | H24: =+C6-H6 -> 10
B25: Variation de capital | H25: =+J4-E4 -> 6
B26: Distributions | H26: =-E5-H15+J5 -> -4
B27: Variation d'emprunt | H27: =+J6-E6 -> -6
B28: Variation de fournisseurs | H28: =+J7-E7 -> -10
B29: Solde de trésorerie à la fin | H29: =SUM(H18:H28) -> 12 | I29: =IF(H29=H7,"Ok solde de fin","Erreur") -> Ok solde de fin

Sheet Exercice compta
C1: Exercice page 86
B2: Corrigé page 211
B3: BILAN AU 31/12/N | K3: COMPTE DE RÉSULTAT DU 01/01/N AU 31/12/N | X3: TABLEAU DE BORD COMPTABLE | AD3: Bilan synthétique avant distributions
B4: Financier | K4: Économique | Z4: TRÉSO | AA4: CAPITAL | AB4: CHIFFRE D'AFFAIRES CUMULÉ | AD4: Immo | AE4: =+C8-D8 -> 40 | AF4: Capital | AG4: =+H8 -> 100
C5: BIENS | F5: DETTES | L5: CHARGES | S5: PRODUITS | X5: RÉSULTAT OPERATION | Y5: RÉSULTAT CUMULÉ | AD5: Stocks | AE5: =+C11-D11 -> 15 | AF5: Résultat | AG5: =+AG8-AG4-AG6-AG7 -> 40
W6: 1 | X6: 0 | Y6: 0 | Z6: 100 | AA6: 100 | AB6: 0 | AD6: Clients | AE6: =+C14+C15+C16-D14-D15-D16 -> 101 | AF6: Emprunt | AG6: =+H14-G14 -> 18
C7: IMMO. | G7: CAPITAL | L7: MATIERES | O7: CONSO STK. | S7: VENTES | W7: 2 | X7: -10 | Y7: =+Y6+X7 -> -10 | Z7: 50 | AA7: 100 | AB7: 0 | AD7: Tréso | AE7: =+C19+C20+C21+C22+C23+C24-D19-D20-D21-D22-D23-D24 -> 32 | AF7: Fourn | AG7: =+H17+H18-G17-G18 -> 30
B8: 2 | C8: 50 | D8: 10 | E8: 2 | H8: 100 | I8: 1 | K8: 3 | L8: 20 | N8: 10 | O8: 5 | T8: 100 | U8: 5 | W8: 3 | X8: -20 | Y8: =+Y7+X8 -> -30 | Z8: 50 | AA8: 100 | AB8: 0 | AD8: Total | AE8: =SUM(AE4:AE7) -> 188 | AF8: Total | AG8: =+AE8 -> 188
K9: 11 | L9: 30 | T9: 10 | U9: 10 | W9: 4 | X9: -40 | Y9: -70 | Z9: 10 | AA9: 100 | AB9: 0
C10: STOCKS | G10: RÉSULTAT | T10: 60 | U10: 12 | W10: 5 | X10: 100 | Y10: 30 | Z10: 10 | AA10: 100 | AB10: 100 | AD10: Distributions
B11: 6 | C11: 20 | D11: 5 | E11: 10 | H11: =+C8+C11+C14+C15+C16+C19+C20+C21+C22+C23+C24+G8+G11+G14+G17+G18-D8-D11-D14-D15-D16-D19-D20-D21-D22-D23-D24-H8-H14-H17-H18 -> 40 | L11: SALAIRES | W11: 6 | X11: 0 | Y11: 30 | Z11: -10 | AA11: 100 | AB11: 100 | AD11: Impôt sur les sociétés | AG11: 12
K12: 4 | L12: 40 | W12: 7 | X12: 0 | Y12: 30 | Z12: -30 | AA12: 100 | AB12: 100 | AD12: Dividendes | AG12: 10
C13: CLIENTS | G13: EMPRUNTS | W13: 8 | X13: -5 | Y13: 25 | Z13: -35 | AA13: 100 | AB13: 100
B14: 5 | C14: 100 | D14: 50 | E14: 13 | F14: 14 | G14: 2 | H14: 20 | I14: 9 | L14: DOTATIONS AUX | W14: 9 | X14: 0 | Y14: 25 | Z14: -15 | AA14: 100 | AB14: 100 | AD14: Bilan synthétique après distributions
B15: 10 | C15: 10 | D15: 19 | E15: 15 | L15: AMORTISS. | O15: PROVISIONS | W15: 10 | X15: 5 | Y15: 30 | Z15: -15 | AA15: 100 | AB15: 110 | AD15: Immo | AE15: =+AE4 -> 40 | AF15: Capital | AG15: =+AG4 -> 100
B16: 12 | C16: 60 | G16: FOURN. | K16: 2 | L16: 10 | N16: 15 | O16: 19 | W16: 11 | X16: -30 | Y16: 0 | Z16: -15 | AA16: 100 | AB16: 110 | AD16: Stocks | AE16: =+AE5 -> 15 | AF16: Résultat | AG16: =+AG5-AG11-AG12 -> 18
F17: 7 | G17: 20 | H17: 20 | I17: 3 | W17: 12 | X17: 60 | Y17: 60 | Z17: -15 | AA17: 100 | AB17: 170 | AD17: Clients | AE17: =+AE6 -> 101 | AF17: Emprunt | AG17: =+AG6 -> 18
C18: + TRÉSO - | H18: 30 | I18: 11 | L18: HORS EXPLOITATION | W18: 13 | X18: 0 | Y18: 60 | Z18: 35 | AA18: 100 | AB18: 170 | AD18: Tréso | AE18: =+AE7-AG11-AG12 -> 10 | AF18: Fourn | AG18: =+AG7 -> 30
B19: 1 | C19: 100 | D19: 50 | E19: 2 | O19: INTERETS | W19: 14 | X19: -1 | Y19: 59 | Z19: 32 | AA19: 100 | AB19: 170 | AD19: Total | AE19: =SUM(AE15:AE18) -> 166 | AF19: Total | AG19: =SUM(AG15:AG18) -> 166
B20: 9 | C20: 20 | D20: 40 | E20: 4 | N20: 8 | O20: 5 | W20: 15 | X20: -19 | Y20: 40 | Z20: 32 | AA20: 100 | AB20: 170
B21: 13 | C21: 50 | D21: 20 | E21: 6 | N21: 14 | O21: 1 | AD21: Capital | AG21: =+AG15 -> 100
D22: 20 | E22: 7 | AD22: Résultat | AG22: =+AG16 -> 18
D23: 5 | E23: 8 | AD23: Capitaux propres | AG23: =SUM(AG21:AG22) -> 118
D24: 3 | E24: 14
AD25: Résultat | AG25: =+AG16 -> 18
AD26: Dividendes | AG26: =+AG12 -> 10
AD27: Capital | AG27: =+AG4 -> 100
AD28: Rémunération actionnaire | AG28: =+(AG25+AG26)/AG27 -> 0.28

Sheet Exercice BioVie
B1: Exercice page 127
B2: Corrigé page 214
B3: Bilan BioVie (K€)
B4: Emplois | D4: Ressources
B5: Immobilisations | C5: 100 | D5: Capital | E5: 130
B6: Stocks | C6: 25 | D6: Résultat | E6: 20
B7: Clients | C7: 45 | D7: Emprunts | E7: 25
B8: Trésorerie | C8: 10 | D8: Fournisseurs | E8: 5
B9: TOTAL | C9: =SUM(C5:C8) -> 180 | D9: TOTAL | E9: =SUM(E5:E8) -> 180
B11: =+D5 -> Capital | C11: =+E5 -> 130
B12: =+D6 -> Résultat | C12: 20
B13: Emprunts | C13: 25
B14: - Immobilisations | C14: =-C5 -> -100
B15: = FR | C15: =SUM(C11:C14) -> 75
B17: =B6 -> Stocks | C17: =C6 -> 25
B18: =B7 -> Clients | C18: =C7 -> 45
B19: - Fournisseurs | C19: =-E8 -> -5
B20: = BFR | C20: =SUM(C17:C19) -> 65
B22: FR | C22: =C15 -> 75
B23: - BFR | C23: =-C20 -> -65
B24: = Trésorerie | C24: =C15-C20 -> 10
B26: BFR | C26: =C20 -> 65
B27: / Chiffre d'affaires | C27: =C26/45*360 -> 520
B28: x 360 | C28: 360
B29: = BFRj | C29: =C26/C27*C28 -> 45

Sheet Exercice BioLife
B1: Exercice page 128
B2: Corrigé page 214
B3: Hypothèses BioLife (K€)
B4: Chiffre d'affaires | E4: 50
B5: Charges décaissables | E5: 30
B6: Investissement | E6: 25
B8: Bilan BioLife (K€)
B9: Emplois | D9: Ressources
B10: Immobilisations | C10: =+E6 -> 25 | D10: EBITDA | E10: =+E4-E5 -> 20
B11: BFR | C11: =+E4*'Exercice BioVie'!C29/360 -> 6.25
B12: TOTAL | C12: =SUM(C10:C11) -> 31.25 | D12: TOTAL | E12: =SUM(E10:E11) -> 20
B14: Bilan BioLife (K€)
B15: Emplois | D15: Ressources
B16: Immobilisations | C16: =C10 -> 25 | D16: EBITDA | E16: =E10 -> 20
B17: BFR | C17: =C11 -> 6.25 | D17: Emprunt | E17: 6
B18: Trésorerie | C18: =+E19-C16-C17 -> -5.25
B19: TOTAL | C19: =SUM(C16:C18) -> 26 | D19: TOTAL | E19: =SUM(E16:E17) -> 26

Sheet Cas pizza
B2: Page 131
B3: Prix de vente de la pizza | E3: 10
B4: Pâte et ingrédients par pizza | E4: 1
B5: Camion par jour | E5: 270
B7: MSCVu
B8: =+B3 -> Prix de vente de la pizza | E8: =+E3 -> 10
B9: - Coûts variables par pizza | E9: =-E4 -> -1
B10: = MSCV par pizza | E10: =SUM(E8:E9) -> 9
B12: Point mort
B13: Coûts fixes | E13: =+E5 -> 270
B14: / MSCV par pizza | E14: =+E10 -> 9
B15: = Point mort | E15: =+E13/E14 -> 30
B17: Pour | C17: 40
B18: Le résultat s'élève à | E18: =+(C17-E15)*E14 -> 90
B26: Graphe point mort par les coûts | E26: 0 | F26: 10 | G26: 20 | H26: 30 | I26: 40 | J26: 50 | K26: 60
B27: Coûts fixes | E27: =+$E$5 -> 270 | F27: =+$E$5 -> 270 | G27: 270 | H27: 270 | I27: 270 | J27: 270 | K27: 270
B28: Coûts variables | E28: =+E26*$E$4 -> 0 | F28: =+F26*$E$4 -> 10 | G28: 20 | H28: 30 | I28: 40 | J28: 50 | K28: 60
B29: Coûts totaux | E29: =+E27+E28 -> 270 | F29: =+F27+F28 -> 280 | G29: 290 | H29: 300 | I29: 310 | J29: 320 | K29: 330
B30: Chiffre d'affaires | E30: =+E26*$E$8 -> 0 | F30: =+F26*$E$8 -> 100 | G30: 200 | H30: 300 | I30: 400 | J30: 500 | K30: 600
B32: Graphe point mort par la marge | E32: 0 | F32: 10 | G32: 20 | H32: 30 | I32: 40 | J32: 50 | K32: 60
B33: Coûts fixes | E33: =+$E$5 -> 270 | F33: =+$E$5 -> 270 | G33: 270 | H33: 270 | I33: 270 | J33: 270 | K33: 270
B34: Marge sur coûts variables | E34: =+E32*$E$10 -> 0 | F34: =+F32*$E$10 -> 90 | G34: 180 | H34: 270 | I34: 360 | J34: 450 | K34: 540

Sheet Cas Manon
B2: Page 137
B3: Tableau de Manon | C3: Pizza | D3: Sandwich | E3: Hot-dog | F3: Total
B4: Chiffre d'affaires | C4: 400 | D4: 120 | E4: 90 | F4: =SUM(C4:E4) -> 610
B5: Ingrédients et cuisson | C5: -150 | D5: -40 | E5: -10 | F5: =SUM(C5:E5) -> -200
B6: Camion | C6: -70 | D6: -70 | E6: -70 | F6: =SUM(C6:E6) -> -210
B7: Ustensiles dédiés | C7: -20 | D7: 0 | E7: -10 | F7: -30
B8: Résultat | C8: =SUM(C4:C7) -> 160 | D8: =SUM(D4:D7) -> 10 | E8: 0 | F8: 170
B9: Pour des ventes moyennes par jour de | C9: 50 | D9: 40 | E9: 10
B11: MSCVu | C11: =C3 -> Pizza | D11: Sandwich | E11: Hot-dog
B12: Chiffre d'affaires | C12: 400 | D12: 120 | E12: 90
B13: - Ingrédients et cuisson | C13: -150 | D13: -40 | E13: -10
B14: = Marge sur coût variable | C14: =SUM(C11:C13) -> 250 | D14: =SUM(D11:D13) -> 80 | E14: 80
B15: / quantités | C15: =C9 -> 50 | D15: =D9 -> 40 | E15: =E9 -> 10
B16: = Marge sur coûts variables unitaire | C16: =C14/C15 -> 5 | D16: =D14/D15 -> 2 | E16: 8
B18: Point mort | C18: =C11 -> Pizza | D18: =D11 -> Sandwich | E18: =E11 -> Hot-dog
B19: Camion | C19: =-C6 -> 70 | D19: 70 | E19: 70
B20: + Ustensiles dédiés | C20: 20 | D20: 0 | E20: 10
B21: = Coûts fixes | C21: =SUM(C19:C20) -> 90 | D21: =SUM(D19:D20) -> 70 | E21: 80
B22: / Marge sur coûts variables unitaire | C22: =C16 -> 5 | D22: =D16 -> 2 | E22: =E16 -> 8
B23: = Point mort | C23: =C21/C22 -> 18 | D23: =D21/D22 -> 35 | E23: 10
B25: Calcul résultat par le point mort | C25: =+C3 -> Pizza | D25: =+D3 -> Sandwich | E25: Hot-dog | F25: Total
B26: Quantités vendues | C26: =C15 -> 50 | D26: =D15 -> 40 | E26: =E15 -> 10
B27: - Point mort | C27: =-C23 -> -18 | D27: =-D23 -> -35 | E27: =-E23 -> -10
B28: = Quantités "en plus ou en moins" | C28: =SUM(C26:C27) -> 32 | D28: =SUM(D26:D27) -> 5 | E28: 0
B29: x Marge sur coûts variables unitaire | C29: =C22 -> 5 | D29: =D22 -> 2 | E29: =E22 -> 8
B30: Résultat | C30: =C28*C29 -> 160 | D30: =D28*D29 -> 10 | E30: 0 | F30: =SUM(C30:E30) -> 170
B32: Résultat par produit pour graphique | C32: 0 | D32: 10 | E32: 20 | F32: 30 | G32: 40 | H32: 50 | I32: 60
B33: =+C3 -> Pizza | C33: =+(C32-$C$23)*$C$16 -> -90 | D33: =+(D32-$C$23)*$C$16 -> -40 | E33: 10 | F33: 60 | G33: 110 | H33: 160 | I33: 210
B34: =+D3 -> Sandwich | C34: =+(C32-$D$23)*$D$16 -> -70 | D34: =+(D32-$D$23)*$D$16 -> -50 | E34: -30 | F34: -10 | G34: 10 | H34: 30 | I34: 50
B35: =+E3 -> Hot-dog | C35: =+(C32-$E$23)*$E$16 -> -80 | D35: =+(D32-$E$23)*$E$16 -> 0 | E35: 80 | F35: 160 | G35: 240 | H35: 320 | I35: 400

Sheet Cas Promo
B2: Page 141
B3: Promotion sur le hot-dog | F3: -1
B4: Nombre de hot-dogs vendus au lieu de pizzas | F4: 25
B6: Résultat avant promotion | F6: =+'Cas Manon'!F8 -> 170
B7: =+F4 -> 25 | F7: =-+F4*'Cas Manon'!C16 -> -125
B8: =+F4 -> 25 | F8: =+F4*('Cas Manon'!E16+F3) -> 175
B9: =+'Cas Manon'!E9&" hot-dogs à "&F3&"€" -> 10 hot-dogs à -1€ | F9: =+'Cas Manon'!E9*F3 -> -10
B10: Résultat après promotion | F10: =SUM(F6:F9) -> 210

Sheet Cas seuil rentabilité
B2: Page 143
B3: Tableau de Manon | C3: =+'Cas Manon'!C3 -> Pizza | D3: =+'Cas Manon'!D3 -> Sandwich | E3: =+'Cas Manon'!E3 -> Hot-dog | F3: =+'Cas Manon'!F3 -> Total
B4: Chiffre d'affaires | C4: =+'Cas Manon'!C4 -> 400 | D4: =+'Cas Manon'!D4 -> 120 | E4: =+'Cas Manon'!E4 -> 90 | F4: =+'Cas Manon'!F4 -> 610
B5: Ingrédients et cuisson | C5: =+'Cas Manon'!C5 -> -150 | D5: =+'Cas Manon'!D5 -> -40 | E5: =+'Cas Manon'!E5 -> -10 | F5: =+'Cas Manon'!F5 -> -200
B6: Camion | C6: =+'Cas Manon'!C6 -> -70 | D6: =+'Cas Manon'!D6 -> -70 | E6: =+'Cas Manon'!E6 -> -70 | F6: =+'Cas Manon'!F6 -> -210
B7: Ustensiles dédiés | C7: =+'Cas Manon'!C7 -> -20 | D7: =+'Cas Manon'!D7 -> 0 | E7: =+'Cas Manon'!E7 -> -10 | F7: =+'Cas Manon'!F7 -> -30
B8: Résultat | C8: =+'Cas Manon'!C8 -> 160 | D8: =+'Cas Manon'!D8 -> 10 | E8: =+'Cas Manon'!E8 -> 0 | F8: =+'Cas Manon'!F8 -> 170
B9: Pour des ventes moyennes par jour de | C9: =+'Cas Manon'!C9 -> 50 | D9: =+'Cas Manon'!D9 -> 40 | E9: =+'Cas Manon'!E9 -> 10
B11: Seuil de rentabilité | F11: =+F3 -> Total
B12: =+B4 -> Chiffre d'affaires | F12: =+F4 -> 610
B13: - Coûts variables | F13: =+F5 -> -200
B14: = Marge sur coûts variables | F14: =+F12+F13 -> 410
B15: Taux de marge sur coûts variables | F15: =+F14/F12 -> 0.6721311475
B16: Coûts fixes | F16: =-F6-F7 -> 240
B17: / taux de marge sur coûts variables | F17: =+F15 -> 0.6721311475
B18: = seuil de rentabilité | F18: =+F16/F17 -> 357.0731707
B19: Résultat pour un chiffre d'affaires de | C19: 610 | F19: =+(C19-F18)*F17 -> 170
B21: Données pour le graphique
B22: Chiffre d'affaires | C22: 0 | D22: 100 | E22: 200 | F22: 300 | G22: 400 | H22: 500 | I22: 600 | J22: 700 | K22: 800 | L22: 900 | M22: 1000
B23: Marge sur coûts variables | C23: =+C22*$F$15 -> 0 | D23: 67.21311475 | E23: 134.4262295 | F23: 201.6393443 | G23: 268.852459 | H23: 336.0655738 | I23: 403.2786885 | J23: 470.4918033 | K23: 537.704918 | L23: 604.9180328 | M23: 672.1311475
B24: Coûts fixes | C24: =+$F$16 -> 240 | D24: =+$F$16 -> 240 | E24: 240 | F24: 240 | G24: 240 | H24: 240 | I24: 240 | J24: 240 | K24: 240 | L24: 240 | M24: 240
B25: Résultat | C25: =+C23-C24 -> -240 | D25: -172.7868852 | E25: -105.5737705 | F25: -38.36065574 | G25: 28.85245902 | H25: 96.06557377 | I25: 163.2786885 | J25: 230.4918033 | K25: 297.704918 | L25: 364.9180328 | M25: 432.1311475

Sheet Cas coûts indirects
B2: Page 146
B3: Calcul de la nouvelle répartition du camion | C3: =+'Cas Manon'!C3 -> Pizza | D3: =+'Cas Manon'!D3 -> Sandwich | E3: =+'Cas Manon'!E3 -> Hot-dog | F3: =+'Cas Manon'!F3 -> Total
B4: Ventes | C4: =+'Cas Manon'!C9 -> 50 | D4: =+'Cas Manon'!D9 -> 40 | E4: =+'Cas Manon'!E9 -> 10
B5: Coefficient de difficulté | C5: 5 | D5: 1 | E5: 2
B6: Ventes coefficientées | C6: =+C4*C5 -> 250 | D6: =+D4*D5 -> 40 | E6: 20 | F6: =SUM(C6:E6) -> 310
B7: Pourcentage de répartition du camion | C7: =C6/$F$6 -> 0.8064516129 | D7: =D6/$F$6 -> 0.1290322581 | E7: 0.06451612903 | F7: =SUM(C7:E7) -> 1
B8: Nouvelle répartition du camion | C8: =-'Cas Manon'!$F$6*'Cas coûts indirects'!C7 -> 169.3548387 | D8: =-'Cas Manon'!$F$6*'Cas coûts indirects'!D7 -> 27.09677419 | E8: =-'Cas Manon'!$F$6*'Cas coûts indirects'!E7 -> 13.5483871 | F8: =SUM(C8:E8) -> 210
B10: Compte de résultat rectifié | C10: =+C3 -> Pizza | D10: =+D3 -> Sandwich | E10: Hot-dog | F10: Total
B11: =+'Cas Manon'!B4 -> Chiffre d'affaires | C11: =+'Cas Manon'!C4 -> 400 | D11: =+'Cas Manon'!D4 -> 120 | E11: =+'Cas Manon'!E4 -> 90 | F11: =SUM(C11:E11) -> 610
B12: =+'Cas Manon'!B5 -> Ingrédients et cuisson | C12: =+'Cas Manon'!C5 -> -150 | D12: =+'Cas Manon'!D5 -> -40 | E12: =+'Cas Manon'!E5 -> -10 | F12: =SUM(C12:E12) -> -200
B13: =+B8 -> Nouvelle répartition du camion | C13: =-C8 -> -169.3548387 | D13: =-D8 -> -27.09677419 | E13: -13.5483871 | F13: -210
B14: =+'Cas Manon'!B7 -> Ustensiles dédiés | C14: =+'Cas Manon'!C7 -> -20 | D14: =+'Cas Manon'!D7 -> 0 | E14: =+'Cas Manon'!E7 -> -10 | F14: -30
B15: =+'Cas Manon'!B8 -> Résultat | C15: =SUM(C11:C14) -> 60.64516129 | D15: =SUM(D11:D14) -> 52.90322581 | E15: 56.4516129 | F15: 170
B17: Point mort nouvelle répartition camion | C17: =+C10 -> Pizza | D17: =+D10 -> Sandwich | E17: Hot-dog | F17: Total
B18: Camion | C18: =-C13 -> 169.3548387 | D18: =-D13 -> 27.09677419 | E18: 13.5483871 | F18: =SUM(C18:E18) -> 210
B19: + Ustensiles dédiés | C19: =-'Cas Manon'!C7 -> 20 | D19: =-'Cas Manon'!D7 -> 0 | E19: =-'Cas Manon'!E7 -> 10 | F19: =SUM(C19:E19) -> 30
B20: = Coûts fixes | C20: =C18+C19 -> 189.3548387 | D20: =D18+D19 -> 27.09677419 | E20: 23.5483871 | F20: 240
B21: / Marge sur coûts variables unitaire | C21: =+'Cas Manon'!C16 -> 5 | D21: =+'Cas Manon'!D16 -> 2 | E21: =+'Cas Manon'!E16 -> 8
B22: = Point mort | C22: =C20/C21 -> 37.87096774 | D22: =D20/D21 -> 13.5483871 | E22: 3
B24: Résultat par produit pour graphique | C24: 0 | D24: 10 | E24: 20 | F24: 30 | G24: 40 | H24: 50 | I24: 60
B25: =+'Cas Manon'!B33 -> Pizza | C25: =+(C24-$C$22)*$C$21 -> -189.3548387 | D25: =+(D24-$C$22)*$C$21 -> -139.3548387 | E25: -89.35483871 | F25: -39.35483871 | G25: 10.64516129 | H25: 60.64516129 | I25: 110.6451613
B26: =+'Cas Manon'!B34 -> Sandwich | C26: =+(C24-$D$22)*$D$21 -> -27.09677419 | D26: =+(D24-$D$22)*$D$21 -> -7.096774194 | E26: 12.90322581 | F26: 32.90322581 | G26: 52.90322581 | H26: 72.90322581 | I26: 92.90322581
B27: =+'Cas Manon'!B35 -> Hot-dog | C27: =+(C24-$E$22)*$E$21 -> -24 | D27: =+(D24-$E$22)*$E$21 -> 56 | E27: 136 | F27: 216 | G27: 296 | H27: 376 | I27: 456
C55: 0 | D55: 10 | E55: 20 | F55: 30 | G55: 40 | H55: 50 | I55: 60 | M55: 50
B56: =+#REF! ->  | C56: =+(C55-#REF!)*#REF! ->  | D56: =+(D55-#REF!)*#REF! ->  | E56: =+(E55-#REF!)*#REF! ->  | F56: =+(F55-#REF!)*#REF! ->  | G56: =+(G55-#REF!)*#REF! ->  | H56: =+(H55-#REF!)*#REF! ->  | I56: =+(I55-#REF!)*#REF! ->  | M56: =(M55-#REF!)*#REF! -> 
B57: =+#REF! ->  | C57: =+(C55-#REF!)*#REF! ->  | D57: =+(D55-#REF!)*#REF! ->  | E57: =+(E55-#REF!)*#REF! ->  | F57: =+(F55-#REF!)*#REF! ->  | G57: =+(G55-#REF!)*#REF! ->  | H57: =+(H55-#REF!)*#REF! ->  | I57: =+(I55-#REF!)*#REF! ->  | M57: =(M55-#REF!)*#REF! -> 
B58: =+#REF! ->  | C58: =+(C55-#REF!)*#REF! ->  | D58: =+(D55-#REF!)*#REF! ->  | E58: =+(E55-#REF!)*#REF! ->  | F58: =+(F55-#REF!)*#REF! ->  | G58: =+(G55-#REF!)*#REF! ->  | H58: =+(H55-#REF!)*#REF! ->  | I58: =+(I55-#REF!)*#REF! ->  | M58: =(M55-#REF!)*#REF! -> 

Sheet Cas coûts fixes
B2: Page 152
B3: Coût fixe | D3: =+'Cas pizza'!E5 -> 270
B4: Coût variable par pizza | D4: =+'Cas pizza'!E4 -> 1
B6: Nombre de pizzas | D6: 40
B7: Quote part de coût fixe par pizza | D7: =+$D$3/D6 -> 6.75
B8: =+B19 -> Coût variable par pizza | D8: =+$D$4 -> 1
B9: Coût complet de production par pizza | D9: =SUM(D7:D8) -> 7.75
B11: Chiffre d'affaires | D11: =+D6*'Cas pizza'!E3 -> 400
B12: - Coût complet de production | D12: =-D9*D6 -> -310
B13: = Résultat (marge brute) | D13: =+D11+D12 -> 90
B17: Données graphique | D17: 5 | E17: 10 | F17: 15 | G17: 20 | H17: 25 | I17: 30 | J17: 35 | K17: 40 | L17: 45 | M17: 50 | N17: 55 | O17: 60 | P17: 65 | Q17: 70 | R17: 75 | S17: 80 | T17: 85 | U17: 90 | V17: 95 | W17: 100
B18: Quote part de coût fixe par pizza | D18: =+$D$3/D17 -> 54 | E18: =+$D$3/E17 -> 27 | F18: 18 | G18: 13.5 | H18: 10.8 | I18: 9 | J18: 7.714285714 | K18: 6.75 | L18: 6 | M18: 5.4 | N18: 4.909090909 | O18: 4.5 | P18: 4.153846154 | Q18: 3.857142857 | R18: 3.6 | S18: 3.375 | T18: 3.176470588 | U18: 3 | V18: 2.842105263 | W18: 2.7
B19: =+B4 -> Coût variable par pizza | D19: =+$D$4 -> 1 | E19: =+$D$4 -> 1 | F19: 1 | G19: 1 | H19: 1 | I19: 1 | J19: 1 | K19: 1 | L19: 1 | M19: 1 | N19: 1 | O19: 1 | P19: 1 | Q19: 1 | R19: 1 | S19: 1 | T19: 1 | U19: 1 | V19: 1 | W19: 1
B20: Coût complet de production par pizza | D20: =SUM(D18:D19) -> 55 | E20: =SUM(E18:E19) -> 28 | F20: 19 | G20: 14.5 | H20: 11.8 | I20: 10 | J20: 8.714285714 | K20: 7.75 | L20: 7 | M20: 6.4 | N20: 5.909090909 | O20: 5.5 | P20: 5.153846154 | Q20: 4.857142857 | R20: 4.6 | S20: 4.375 | T20: 4.176470588 | U20: 4 | V20: 3.842105263 | W20: 3.7

Sheet Exercice Promo
B1: Exercice page 158
B2: Corrigé page 217
B3: Promotion sur le hot dog | C3: -1
B4: Nombre de hot dogs vendus au lieu de pizzas | C4: 25
B6: AVANT promotion | C6: Pizza | D6: Sandwich | E6: Hot dog
B7: Chiffre d'affaires | C7: =+'Cas Manon'!C4 -> 400 | D7: =+'Cas Manon'!D4 -> 120 | E7: =+'Cas Manon'!E4 -> 90
B8: Coûts variables | C8: =+'Cas Manon'!C5*-1 -> 150 | D8: =+'Cas Manon'!D5*-1 -> 40 | E8: =+'Cas Manon'!E5*-1 -> 10
B9: Quantités | C9: =+'Cas Manon'!C9 -> 50 | D9: =+'Cas Manon'!D9 -> 40 | E9: =+'Cas Manon'!E9 -> 10
B10: Prix de vente unitaire | C10: =+C7/C$9 -> 8 | D10: =+D7/D$9 -> 3 | E10: 9
B11: Coûts variables unitaires | C11: =+C8/C$9 -> 3 | D11: =+D8/D$9 -> 1 | E11: 1
B13: APRES promotion | C13: Pizza | D13: Sandwich | E13: Hot dog
B14: Prix de vente unitaire | C14: =+C10 -> 8 | D14: =+D10 -> 3 | E14: =+E10+C3 -> 8
B15: Coûts variables unitaires | C15: =+C11 -> 3 | D15: =+D11 -> 1 | E15: =+E11 -> 1
B16: Quantités | C16: =+C9-C4 -> 25 | D16: =+D9 -> 40 | E16: =+E9+C4 -> 35
B18: Tableau de Manon APRÈS promotion | C18: =+'Cas Manon'!C3 -> Pizza | D18: =+'Cas Manon'!D3 -> Sandwich | E18: =+'Cas Manon'!E3 -> Hot-dog | F18: Total
B19: Chiffre d'affaires | C19: =+'Cas Manon'!C4/'Cas Manon'!C9*'Exercice Promo'!C24 -> 200 | D19: =+'Cas Manon'!D4/'Cas Manon'!D9*'Exercice Promo'!D24 -> 120 | E19: =+(('Cas Manon'!E4/'Cas Manon'!E9)+'Exercice Promo'!C3)*E24 -> 280 | F19: =SUM(C19:E19) -> 600
B20: Ingrédients et cuisson | C20: =+'Cas Manon'!C5/'Cas Manon'!C9*'Exercice Promo'!C24 -> -75 | D20: =+'Cas Manon'!D5/'Cas Manon'!D9*'Exercice Promo'!D24 -> -40 | E20: =+'Cas Manon'!E5/'Cas Manon'!E9*'Exercice Promo'!E24 -> -35 | F20: =SUM(C20:E20) -> -150
B21: Camion | C21: =+'Cas Manon'!C6 -> -70 | D21: =+'Cas Manon'!D6 -> -70 | E21: =+'Cas Manon'!E6 -> -70 | F21: =SUM(C21:E21) -> -210
B22: Ustensiles dédiés | C22: =+'Cas Manon'!C7 -> -20 | D22: =+'Cas Manon'!D7 -> 0 | E22: =+'Cas Manon'!E7 -> -10 | F22: -30
B23: Résultat | C23: =SUM(C19:C22) -> 35 | D23: =SUM(D19:D22) -> 10 | E23: 165 | F23: 210
B24: Pour des ventes moyennes par jour de | C24: =+'Cas Manon'!C9-'Exercice Promo'!C4 -> 25 | D24: =+'Cas Manon'!D9 -> 40 | E24: =+'Cas Manon'!E9+'Exercice Promo'!C4 -> 35
B26: MSCVu APRES promotion | C26: =C18 -> Pizza | D26: Sandwich | E26: Hot-dog
B27: Chiffre d'affaires | C27: =+C19 -> 200 | D27: =+D19 -> 120 | E27: 280
B28: - Ingrédients et cuisson | C28: =+C20 -> -75 | D28: -40 | E28: -35
B29: = Marge sur coût variable | C29: =SUM(C26:C28) -> 125 | D29: =SUM(D26:D28) -> 80 | E29: 245
B30: / quantités | C30: =+C24 -> 25 | D30: =+D24 -> 40 | E30: 35
B31: = Marge sur coûts variables unitaire | C31: =C29/C30 -> 5 | D31: =D29/D30 -> 2 | E31: 7
B33: Point mort APRÈS promotion | C33: =C26 -> Pizza | D33: =D26 -> Sandwich | E33: =E26 -> Hot-dog
B34: Camion | C34: =-C21 -> 70 | D34: =-D21 -> 70 | E34: 70
B35: + Ustensiles dédiés | C35: 20 | D35: =-D22 -> 0 | E35: 10
B36: = Coûts fixes | C36: =SUM(C34:C35) -> 90 | D36: =SUM(D34:D35) -> 70 | E36: 80
B37: / Marge sur coûts variables unitaire | C37: =C31 -> 5 | D37: =D31 -> 2 | E37: 7
B38: = Point mort | C38: =C36/C37 -> 18 | D38: =D36/D37 -> 35 | E38: 11.42857143
B40: Calcul résultat par le point mort APRÈS PROMOTION | C40: =+C18 -> Pizza | D40: =+D18 -> Sandwich | E40: Hot-dog | F40: Total
B41: Quantités vendues | C41: =C30 -> 25 | D41: =D30 -> 40 | E41: =E30 -> 35
B42: - Point mort | C42: =-C38 -> -18 | D42: =-D38 -> -35 | E42: =-E38 -> -11.42857143
B43: = Quantités "en plus ou en moins" | C43: =SUM(C41:C42) -> 7 | D43: =SUM(D41:D42) -> 5 | E43: 23.57142857
B44: x Marge sur coûts variables unitaires | C44: =C37 -> 5 | D44: =D37 -> 2 | E44: =E37 -> 7
B45: Résultat | C45: =C43*C44 -> 35 | D45: =D43*D44 -> 10 | E45: 165 | F45: =SUM(C45:E45) -> 210
B47: Résultat par produit pour graphique | C47: 0 | D47: 10 | E47: 20 | F47: 30 | G47: 40 | H47: 50 | I47: 60
B48: =+C18 -> Pizza | C48: =+(C47-$C$38)*$C$31 -> -90 | D48: =+(D47-$C$38)*$C$31 -> -40 | E48: 10 | F48: 60 | G48: 110 | H48: 160 | I48: 210
B49: =+D18 -> Sandwich | C49: =+(C47-$D$38)*$D$31 -> -70 | D49: =+(D47-$D$38)*$D$31 -> -50 | E49: -30 | F49: -10 | G49: 10 | H49: 30 | I49: 50
B50: =+E18 -> Hot-dog | C50: =+(C47-$E$38)*$E$31 -> -80 | D50: =+(D47-$E$38)*$E$31 -> -10 | E50: 60 | F50: 130 | G50: 200 | H50: 270 | I50: 340

Sheet Exercice BigPlus
B1: Exercice page 159
B2: Corrigé page 218
B3: Prix de vente unitaire | C3: 150
B4: Coûts variables unitaires | C4: 120
B5: Coûts fixes mensuels | C5: 30000
B7: Point mort mensuel | C7: =+C5/(C3-C4) -> 1000
C9: Produits par mois
C10: 900 | D10: 1000 | E10: 1200
B11: Résultat | C11: =+(C10-$C$7)*($C$3-$C$4) -> -3000 | D11: =+(D10-$C$7)*($C$3-$C$4) -> 0 | E11: =+(E10-$C$7)*($C$3-$C$4) -> 6000

Sheet Exercice Formaplus
B1: Exercice page 159
B2: Corrigé page 219
B3: Prix de vente unitaire | C3: 300
B4: Coûts variables unitaires | C4: 50
B5: Coûts fixes animateurs | C5: 1000
B6: Coûts fixes salle | C6: 500
B7: Coûts fixes complémentaires | C7: 1000
B9: Point mort mensuel | C9: =+(C5+C6+C7)/(C3-C4) -> 10
C11: Stagiaires par session
C12: 8 | D12: 10 | E12: 15
B13: Résultat | C13: =+(C12-$C$9)*($C$3-$C$4) -> -500 | D13: =+(D12-$C$9)*($C$3-$C$4) -> 0 | E13: 1250

Sheet Exercice 3 projets
B1: Exercice page 159
B2: Corrigé page 219
B3: Hypothèses initiales
B4: Prix de vente unitaire | C4: 1000
B5: Coûts variables unitaires | C5: 800
B6: Coûts fixes annuels | C6: 20000000
B7: Quantités vendues annuelles | C7: 110000
B9: A | F9: Projet
B10: Campagne communication | C10: 1000000 | F10: Origine | G10: A | H10: B | I10: C
B11: Augmentation volume ventes | C11: 0.05 | E11: Prix de vente unitaire | F11: =+$C$4 -> 1000 | G11: =+$C$4 -> 1000 | H11: 1000 | I11: 1000
E12: Coûts variables unitaires | F12: =-$C$5 -> -800 | G12: =-$C$5 -> -800 | H12: =-$C$5*(1-C17) -> -760 | I12: =-$C$5*(1-C21) -> -792
B13: B | E13: MSVCu | F13: =SUM(F11:F12) -> 200 | G13: =SUM(G11:G12) -> 200 | H13: 240 | I13: 208
B14: Coût machine | C14: 500000 | E14: Coûts fixes | F14: =+$C$6 -> 20000000 | G14: =+$C$6+C10 -> 21000000 | H14: =+$C$6+(C14*C15/C16) -> 20300000 | I14: =+($C$6*(1-C21))+C20 -> 20800000
B15: Nombre machines | C15: 3 | E15: Point mort | F15: =+F14/F13 -> 100000 | G15: =+G14/G13 -> 105000 | H15: 84583.33333 | I15: 100000
B16: Durée amortissement | C16: 5 | E16: Quantités vendues | F16: =+$C$7 -> 110000 | G16: =+$C$7+(C7*C11) -> 115500 | H16: =+$C$7 -> 110000 | I16: =+$C$7 -> 110000
B17: Réduction coûts variables | C17: 0.05 | E17: Résultat | F17: =+(F16-F15)*F13 -> 2000000 | G17: =+(G16-G15)*G13 -> 2100000 | H17: 6100000 | I17: 2080000
B19: C
B20: Process qualité | C20: 1000000
B21: Baisse coûts fixes et variables | C21: 0.01

Sheet Exercice SudMoto
B1: Exercice page 160
B2: Corrigé page 221
B3: En k€ | E3: Pour le calcul de la date d'atteinte du point mort
B4: Chiffre d'affaires | C4: 10000 | G4: Nombre jours
B5: Coûts variables | C5: 7500 | G5: Mois | H5: Cumulé
B6: Coûts fixes | C6: 1000 | E6: 1 | F6: Janvier | G6: 30 | H6: =+G6 -> 30
B7: Croissance | C7: 0.1 | E7: 2 | F7: Février | G7: 30 | H7: =+H6+G7 -> 60
E8: 3 | F8: Mars | G8: 30 | H8: =+H7+G8 -> 90
B9: En k€ | E9: 4 | F9: Avril | G9: 30 | H9: 120
B10: Taux de marge sur coûts variables | C10: =+(C4-C5)/C4 -> 0.25 | E10: 5 | F10: Mai | G10: 30 | H10: 150
B11: Seuil de rentabilité | C11: =+C6/C10 -> 4000 | E11: 6 | F11: Juin | G11: 30 | H11: 180
B12: Résultat prévisionnel | C12: =((C4*(1+C7))-C11)*C10 -> 1750 | E12: 7 | F12: Juillet | G12: 30 | H12: 210
E13: 8 | F13: Août | G13: 30 | H13: 240
B14: Nombre jours atteinte point mort | C14: =+C11/C4*360 -> 144 | E14: 9 | F14: Septembre | G14: 30 | H14: 270
B15: Soit le | C15: =+H22&" "&H23 -> 24 Mai | E15: 10 | F15: Octobre | G15: 30 | H15: 300
E16: 11 | F16: Novembre | G16: 30 | H16: 330
B17: Compte de résultat année N+1 (en K€) | E17: 12 | F17: Décembre | G17: 30 | H17: 360
B18: Chiffres d'affaires | C18: =+C4*(1+C7) -> 11000
B19: - Coûts variables | C19: =-C5*(1+C7) -> -8250 | F19: Nombre jours | H19: =+C14 -> 144
B20: - Coûts fixes | C20: =-C6 -> -1000 | F20: Après la fin du mois | H20: =MATCH(H19,H6:H17,1) -> 4
B21: = Résultat | C21: =SUM(C18:C20) -> 1750 | F21: =+"Nombre jours fin mois "&H20 -> Nombre jours fin mois 4 | H21: =+H20*30 -> 120
F22: =+"Nombre jours mois "&H20+1 -> Nombre jours mois 5 | H22: =+H19-H21 -> 24
F23: =+"Nom mois "&H20+1 -> Nom mois 5 | H23: =+VLOOKUP(H20+1,E6:F17,2) -> Mai

Sheet Cas business plan
B2: Page 163 | H2: Page 167 | M2: Page 167
B3: Hypothèses | H3: Bilan fin d'année | M3: Compte de résultat année
B4: Chiffre d'affaires | C4: 300 | D4: K€ | H4: Emplois | J4: Ressources | M4: Chiffre d'affaires | N4: =+C4 -> 300
B5: Taux de marge | C5: 0.4 | D5: du chiffre d'affaires | H5: Immo | I5: =+C7+C8+N8 -> 47 | J5: Capital | K5: =+K9-K6-K7-K8 -> 60.21 | M5: - Achats | N5: =+N6-N4 -> -180
B6: Frais généraux | C6: 100 | D6: K€ | H6: Stocks | I6: =+C12 -> 60 | J6: Résultat | K6: =+N12 -> 12.94 | M6: = Marge | N6: =+C4*C5 -> 120
B7: Local | C7: 50 | D7: amortis sur | E7: 10 | F7: ans | H7: Clients | I7: =+N4*C13/360 -> 0 | J7: Emprunt | K7: =+C9*(C7+C8)*(C11-1)/C11 -> 23.85 | M7: - Frais généraux | N7: =-C6 -> -100
B8: Informatique | C8: 3 | D8: amortis sur | E8: 3 | F8: ans | H8: Tréso | I8: 5 | J8: Fourn. | K8: =-N5*C14/360 -> 15 | M8: - Amortissements | N8: =-(C7/E7)-(C8/E8) -> -6
B9: Emprunt | C9: 0.5 | D9: des investissements | H9: Total | I9: =SUM(I5:I8) -> 112 | J9: Total | K9: =+I9 -> 112 | M9: - Frais financiers | N9: =-(C7+C8)*C9*C10 -> -1.06
C10: 0.04 | D10: par an | M10: = Résultat avant distributions | N10: =SUM(N6:N9) -> 12.94
C11: 10 | D11: ans | H11: Page 169 | M11: - Distributions | N11: 0
B12: Stocks | C12: 60 | D12: K€ | H12: Bilan fin d'année partiellement restructuré | M12: = Résultat après distributions | N12: =SUM(N10:N11) -> 12.94
B13: Clients | C13: 0 | D13: jours | H13: Emplois | J13: Ressources
B14: Fournisseurs | C14: 30 | D14: jours | H14: Immo | I14: =+I5 -> 47 | J14: Capital | K14: =+K18-K15-K16-K17 -> 7.71
H15: Stocks | I15: =-N5*C17/360 -> 15 | J15: Résultat | K15: =+K6 -> 12.94
B16: Restructuration du BFR | H16: Clients | I16: =+I7 -> 0 | J16: Emprunt | K16: =+K7 -> 23.85
B17: Stocks | C17: 30 | D17: jours | H17: Tréso | I17: =+I8 -> 5 | J17: Fourn. | K17: =-N5*C18/360 -> 22.5
B18: Fournisseurs | C18: 45 | D18: jours | H18: Total | I18: =SUM(I14:I17) -> 67 | J18: Total | K18: =+I18 -> 67
H20: Page 170
H21: Bilan fin d'année, BFR restructuré
H22: Emplois | J22: Ressources
H23: Immo | I23: =+I14 -> 47 | J23: Capital | K23: =+(C7+C8)*C9 -> 26.5
H24: Stocks | I24: =+I15 -> 15 | J24: Résultat | K24: =+K15 -> 12.94
H25: Clients | I25: =+I27-I23-I24-I26 -> 18.79 | J25: Emprunt | K25: =+K16 -> 23.85
H26: Tréso | I26: =+I17 -> 5 | J26: Fourn. | K26: =+K17 -> 22.5
H27: Total | I27: =+K27 -> 85.79 | J27: Total | K27: =SUM(K23:K26) -> 85.79

Sheet Formules emprunt
B2: Page 172
B3: Caractéristiques de l'emprunt (saisir une durée inférieure ou égale à 30 ans, les tableaux n'étant pas prévus pour une durée plus longue)
B4: Montant | C4: 27000 | D4: €
B5: Taux | C5: 0.04 | D5: annuel
B6: Durée | C6: 10 | D6: ans
B8: Mensualité | C8: =+PMT(C5/12,C6*12,C4) -> -273.361873 | D8: Fonction VPM()
B10: Tableau d'amortissement
B11: Rang | C11: Capital fonction PRINCPER() | D11: Intérêt fonction INTPER() | E11: Total identique au résultat de VPM
B12: 1 | C12: =IFERROR(PPMT($C$5/12,B12,$C$6*12,$C$4),"") -> -183.361873 | D12: =+IFERROR(IPMT($C$5/12,B12,$C$6*12,$C$4),"") -> -90 | E12: =IF(SUM(C12:D12)=0,"",SUM(C12:D12)) -> -273.361873
B13: =IF(B12+1<=$C$6*12,B12+1,"") -> 2 | C13: -183.9730793 | D13: -89.38879376 | E13: =IF(SUM(C13:D13)=0,"",SUM(C13:D13)) -> -273.361873
B14: =IF(B13+1<=$C$6*12,B13+1,"") -> 3 | C14: -184.5863229 | D14: -88.77555016 | E14: -273.361873
B15: 4 | C15: -185.2016106 | D15: -88.16026242 | E15: -273.361873
B16: 5 | C16: -185.8189493 | D16: -87.54292371 | E16: -273.361873
B17: 6 | C17: -186.4383458 | D17: -86.92352722 | E17: -273.361873
B18: 7 | C18: -187.059807 | D18: -86.30206606 | E18: -273.361873
B19: 8 | C19: -187.6833397 | D19: -85.67853337 | E19: -273.361873
B20: 9 | C20: -188.3089508 | D20: -85.05292224 | E20: -273.361873
B21: 10 | C21: -188.9366473 | D21: -84.42522574 | E21: -273.361873
B22: 11 | C22: -189.5664361 | D22: -83.79543691 | E22: -273.361873
B23: 12 | C23: -190.1983243 | D23: -83.16354879 | E23: -273.361873
B24: =IFERROR(IF(B23+1<=$C$6*12,B23+1,""),"") -> 13 | C24: -190.8323187 | D24: =+IFERROR(IPMT($C$5/12,B24,$C$6*12,$C$4),"") -> -82.52955438 | E24: =IF(SUM(C24:D24)=0,"",SUM(C24:D24)) -> -273.361873
B25: =IFERROR(IF(B24+1<=$C$6*12,B24+1,""),"") -> 14 | C25: -191.4684264 | D25: -81.89344665 | E25: -273.361873
B26: 15 | C26: -192.1066545 | D26: -81.25521856 | E26: -273.361873
B27: 16 | C27: -192.74701 | D27: -80.61486305 | E27: -273.361873
B28: 17 | C28: -193.3895 | D28: -79.97237301 | E28: -273.361873
B29: 18 | C29: -194.0341317 | D29: -79.32774135 | E29: -273.361873
B30: 19 | C30: -194.6809121 | D30: -78.68096091 | E30: -273.361873
B31: 20 | C31: -195.3298485 | D31: -78.03202453 | E31: -273.361873
B32: 21 | C32: -195.980948 | D32: -77.38092504 | E32: -273.361873
B33: 22 | C33: -196.6342178 | D33: -76.72765521 | E33: -273.361873
B34: 23 | C34: -197.2896652 | D34: -76.07220782 | E34: -273.361873
B35: 24 | C35: -197.9472974 | D35: -75.4145756 | E35: -273.361873
B36: 25 | C36: -198.6071218 | D36: -74.75475128 | E36: -273.361873
B37: 26 | C37: -199.2691455 | D37: -74.09272754 | E37: -273.361873
B38: 27 | C38: -199.933376 | D38: -73.42849705 | E38: -273.361873
B39: 28 | C39: -200.5998206 | D39: -72.76205247 | E39: -273.361873
B40: 29 | C40: -201.2684866 | D40: -72.0933864 | E40: -273.361873
B41: 30 | C41: -201.9393816 | D41: -71.42249144 | E41: -273.361873
B42: 31 | C42: -202.6125129 | D42: -70.74936017 | E42: -273.361873
B43: 32 | C43: -203.2878879 | D43: -70.07398513 | E43: -273.361873
B44: 33 | C44: -203.9655142 | D44: -69.39635884 | E44: -273.361873
B45: 34 | C45: -204.6453993 | D45: -68.71647379 | E45: -273.361873
B46: 35 | C46: -205.3275506 | D46: -68.03432246 | E46: -273.361873
B47: 36 | C47: -206.0119758 | D47: -67.34989729 | E47: -273.361873
B48: 37 | C48: -206.6986823 | D48: -66.6631907 | E48: -273.361873
B49: 38 | C49: -207.387678 | D49: -65.97419509 | E49: -273.361873
B50: 39 | C50: -208.0789702 | D50: -65.28290283 | E50: -273.361873
B51: 40 | C51: -208.7725668 | D51: -64.58930627 | E51: -273.361873
B52: 41 | C52: -209.4684753 | D52: -63.89339771 | E52: -273.361873
B53: 42 | C53: -210.1667036 | D53: -63.19516946 | E53: -273.361873
B54: 43 | C54: -210.8672593 | D54: -62.49461378 | E54: -273.361873
B55: 44 | C55: -211.5701501 | D55: -61.79172292 | E55: -273.361873
B56: 45 | C56: -212.275384 | D56: -61.08648908 | E56: -273.361873
B57: 46 | C57: -212.9829686 | D57: -60.37890447 | E57: -273.361873
B58: 47 | C58: -213.6929118 | D58: -59.66896124 | E58: -273.361873
B59: 48 | C59: -214.4052215 | D59: -58.95665154 | E59: -273.361873
B60: 49 | C60: -215.1199056 | D60: -58.24196746 | E60: -273.361873
B61: 50 | C61: -215.8369719 | D61: -57.52490111 | E61: -273.361873
B62: 51 | C62: -216.5564285 | D62: -56.80544454 | E62: -273.361873
B63: 52 | C63: -217.2782833 | D63: -56.08358978 | E63: -273.361873
B64: 53 | C64: -218.0025442 | D64: -55.35932883 | E64: -273.361873
B65: 54 | C65: -218.7292194 | D65: -54.63265369 | E65: -273.361873
B66: 55 | C66: -219.4583168 | D66: -53.90355629 | E66: -273.361873
B67: 56 | C67: -220.1898445 | D67: -53.17202857 | E67: -273.361873
B68: 57 | C68: -220.9238106 | D68: -52.43806242 | E68: -273.361873
B69: 58 | C69: -221.6602233 | D69: -51.70164972 | E69: -273.361873
B70: 59 | C70: -222.3990907 | D70: -50.9627823 | E70: -273.361873
B71: 60 | C71: -223.140421 | D71: -50.221452 | E71: -273.361873
B72: 61 | C72: -223.8842224 | D72: -49.4776506 | E72: -273.361873
B73: 62 | C73: -224.6305032 | D73: -48.73136986 | E73: -273.361873
B74: 63 | C74: -225.3792715 | D74: -47.98260151 | E74: -273.361873
B75: 64 | C75: -226.1305358 | D75: -47.23133727 | E75: -273.361873
B76: 65 | C76: =IFERROR(PPMT($C$5/12,B76,$C$6*12,$C$4),"") -> -226.8843042 | D76: -46.47756882 | E76: -273.361873
B77: 66 | C77: -227.6405852 | D77: -45.72128781 | E77: -273.361873
B78: 67 | C78: -228.3993872 | D78: -44.96248586 | E78: -273.361873
B79: 68 | C79: -229.1607185 | D79: -44.20115457 | E79: -273.361873
B80: 69 | C80: -229.9245875 | D80: -43.4372855 | E80: -273.361873
B81: 70 | C81: -230.6910028 | D81: -42.67087021 | E81: -273.361873
B82: 71 | C82: -231.4599728 | D82: -41.9019002 | E82: -273.361873
B83: 72 | C83: -232.2315061 | D83: -41.13036696 | E83: -273.361873
B84: 73 | C84: -233.0056111 | D84: -40.35626194 | E84: -273.361873
B85: 74 | C85: -233.7822965 | D85: -39.57957657 | E85: -273.361873
B86: 75 | C86: -234.5615708 | D86: -38.80030225 | E86: -273.361873
B87: 76 | C87: -235.3434427 | D87: -38.01843035 | E87: -273.361873
B88: 77 | C88: -236.1279208 | D88: =+IFERROR(IPMT($C$5/12,B88,$C$6*12,$C$4),"") -> -37.2339522 | E88: =IF(SUM(C88:D88)=0,"",SUM(C88:D88)) -> -273.361873
B89: =IFERROR(IF(B88+1<=$C$6*12,B88+1,""),"") -> 78 | C89: -236.9150139 | D89: -36.44685913 | E89: -273.361873
B90: 79 | C90: -237.7047306 | D90: -35.65714242 | E90: -273.361873
B91: 80 | C91: -238.4970797 | D91: -34.86479332 | E91: -273.361873
B92: 81 | C92: -239.29207 | D92: -34.06980305 | E92: -273.361873
B93: 82 | C93: -240.0897102 | D93: -33.27216282 | E93: -273.361873
B94: 83 | C94: -240.8900093 | D94: -32.47186379 | E94: -273.361873
B95: 84 | C95: -241.692976 | D95: -31.66889709 | E95: -273.361873
B96: 85 | C96: -242.4986192 | D96: -30.86325383 | E96: -273.361873
B97: 86 | C97: -243.3069479 | D97: -30.0549251 | E97: -273.361873
B98: 87 | C98: -244.1179711 | D98: -29.24390194 | E98: -273.361873
B99: 88 | C99: -244.9316977 | D99: -28.43017537 | E99: -273.361873
B100: 89 | C100: -245.7481367 | D100: -27.61373638 | E100: -273.361873
B101: 90 | C101: -246.5672971 | D101: -26.79457593 | E101: -273.361873
B102: 91 | C102: -247.3891881 | D102: -25.97268494 | E102: -273.361873
B103: 92 | C103: -248.2138187 | D103: -25.14805431 | E103: -273.361873
B104: 93 | C104: -249.0411981 | D104: -24.32067491 | E104: -273.361873
B105: 94 | C105: -249.8713355 | D105: -23.49053759 | E105: -273.361873
B106: 95 | C106: -250.7042399 | D106: -22.65763313 | E106: -273.361873
B107: 96 | C107: -251.5399207 | D107: -21.82195233 | E107: -273.361873
B108: 97 | C108: -252.3783871 | D108: -20.98348593 | E108: -273.361873
B109: 98 | C109: -253.2196484 | D109: -20.14222464 | E109: -273.361873
B110: 99 | C110: -254.0637139 | D110: -19.29815915 | E110: -273.361873
B111: 100 | C111: -254.9105929 | D111: -18.4512801 | E111: -273.361873
B112: 101 | C112: -255.7602949 | D112: -17.60157812 | E112: -273.361873
B113: 102 | C113: -256.6128292 | D113: -16.74904381 | E113: -273.361873
B114: 103 | C114: -257.4682053 | D114: -15.89366771 | E114: -273.361873
B115: 104 | C115: -258.3264327 | D115: -15.03544036 | E115: -273.361873
B116: 105 | C116: -259.1875208 | D116: -14.17435225 | E116: -273.361873
B117: 106 | C117: -260.0514792 | D117: -13.31039385 | E117: -273.361873
B118: 107 | C118: -260.9183175 | D118: -12.44355558 | E118: -273.361873
B119: 108 | C119: -261.7880452 | D119: -11.57382786 | E119: -273.361873
B120: 109 | C120: -262.660672 | D120: -10.70120104 | E120: -273.361873
B121: 110 | C121: -263.5362076 | D121: -9.825665468 | E121: -273.361873
B122: 111 | C122: -264.4146616 | D122: -8.947211443 | E122: -273.361873
B123: 112 | C123: -265.2960438 | D123: -8.065829238 | E123: -273.361873
B124: 113 | C124: -266.180364 | D124: -7.181509092 | E124: -273.361873
B125: 114 | C125: -267.0676318 | D125: -6.294241212 | E125: -273.361873
B126: 115 | C126: -267.9578573 | D126: -5.404015773 | E126: -273.361873
B127: 116 | C127: -268.8510501 | D127: -4.510822915 | E127: -273.361873
B128: 117 | C128: -269.7472203 | D128: -3.614652748 | E128: -273.361873
B129: 118 | C129: -270.6463777 | D129: -2.715495347 | E129: -273.361873
B130: 119 | C130: -271.5485323 | D130: -1.813340755 | E130: -273.361873
B131: 120 | C131: -272.4536941 | D131: -0.9081789802 | E131: -273.361873
C140: =IFERROR(PPMT($C$5/12,B140,$C$6*12,$C$4),"") -> 
D152: =+IFERROR(IPMT($C$5/12,B152,$C$6*12,$C$4),"") ->  | E152: =IF(SUM(C152:D152)=0,"",SUM(C152:D152)) -> 
B153: =IFERROR(IF(B152+1<=$C$6*12,B152+1,""),"") -> 
C204: =IFERROR(PPMT($C$5/12,B204,$C$6*12,$C$4),"") -> 
D216: =+IFERROR(IPMT($C$5/12,B216,$C$6*12,$C$4),"") ->  | E216: =IF(SUM(C216:D216)=0,"",SUM(C216:D216)) -> 
B217: =IFERROR(IF(B216+1<=$C$6*12,B216+1,""),"") -> 
C268: =IFERROR(PPMT($C$5/12,B268,$C$6*12,$C$4),"") -> 
D280: =+IFERROR(IPMT($C$5/12,B280,$C$6*12,$C$4),"") ->  | E280: =IF(SUM(C280:D280)=0,"",SUM(C280:D280)) -> 
B281: =IFERROR(IF(B280+1<=$C$6*12,B280+1,""),"") -> 
C332: =IFERROR(PPMT($C$5/12,B332,$C$6*12,$C$4),"") -> 
D344: =+IFERROR(IPMT($C$5/12,B344,$C$6*12,$C$4),"") ->  | E344: =IF(SUM(C344:D344)=0,"",SUM(C344:D344)) -> 
B345: =IFERROR(IF(B344+1<=$C$6*12,B344+1,""),"") -> 

Sheet Exercice business plan
B1: Exercice page 175
B2: Corrigé pages 222 à 225
B3: Page 222 | H3: Page 223 | O3: Page 223
B4: Hypothèses | H4: Bilan en fin d'année | O4: Compte de résultat de l'année
B5: Chiffre d'affaires | C5: 2400 | D5: K€ | H5: Emplois | K5: Ressources | O5: Chiffre d'affaires | P5: =+C5 -> 2400 | Q5: 1
B6: Clients | C6: 60 | D6: jours | H6: Immo | I6: =+C14+P9 -> 80 | J6: 5 | K6: Capital | L6: =+L10-L9-L8-L7 -> 282 | M6: 18 | O6: - Achats | P6: =+P7-P5 -> -1800 | Q6: 3
B7: Dividendes | C7: 0.1 | D7: du résultat après impôt sociétés | H7: Stocks | I7: =-P6*C16/360 -> 150 | J7: 6 | K7: Résultat | L7: =+P15 -> 19 | M7: 15 | O7: = Marge | P7: =+C5*C17 -> 600 | Q7: 2
B8: Emprunt | C8: =1/3 -> 0.3333333333 | D8: Investissements | H8: Clients | I8: =+C5*C6/360 -> 400 | J8: 7 | K8: Emprunt | L8: =ROUND(((C14*C8)+((I7+I8-L9)*C9))*(C11-1)/C11,0) -> 219 | M8: 9 | O8: - Frais généraux | P8: =-C13 -> -550 | Q8: 1
C9: 0.5 | D9: BFR | H9: Tréso | I9: =+C18*I8 -> 40 | J9: 16 | K9: Fourn | L9: =-P6*C12/360 -> 150 | M9: 8 | O9: - Amortissements | P9: =-C14/E14 -> -10 | Q9: 4
C10: 0.04 | D10: par an | H10: Total | I10: =SUM(I6:I9) -> 670 | J10: 17 | K10: Total | L10: =+I10 -> 670 | M10: 17 | O10: - Frais financiers | P10: =-((C14*C8)+((I7+I8-L9)*C9))*C10 -> -9.2 | Q10: 10
C11: 20 | D11: ans | O11: = Résultat avant impôt société | P11: =ROUND(SUM(P7:P10),0) -> 31 | Q11: 11
B12: Fournisseurs | C12: 30 | D12: jours | H12: Résultat après impôt société | L12: =+P13 -> 21 | O12: - Impôt société | P12: =-P11*C15 -> -10.33333333 | Q12: 12
B13: Frais généraux | C13: 550 | D13: K€ | H13: / Capital | L13: =+L6 -> 282 | O13: = Résultat après impôt société | P13: =ROUND(SUM(P11:P12),0) -> 21 | Q13: 13
B14: Investissement | C14: 90 | D14: K€ amortis sur | E14: 9 | F14: ans | H14: = Rentabilité pour l'actionnaire | L14: =+L12/L13 -> 0.07446808511 | O14: - Dividendes | P14: =-P13*C7 -> -2.1 | Q14: 14
B15: Taux impôts sur les sociétés | C15: =1/3 -> 0.3333333333 | D15: du résultat avant impôt | O15: = Résultat après distributions | P15: =ROUND(SUM(P13:P14),0) -> 19 | Q15: 15
B16: Stocks | C16: 30 | D16: jours
B17: Taux de marge | C17: 0.25 | D17: du chiffre d'affaires
B18: Trésorerie | C18: 0.1 | D18: du poste Clients
H19: Page 225
B20: Variante | H20: Bilan en fin d'année, variante partielle
B21: Stocks | C21: 15 | D21: jours | H21: Emplois | K21: Ressources
B22: Fournisseurs | C22: 45 | D22: jours | H22: Immo | I22: =+I6 -> 80 | K22: Capital | L22: =+L26-L25-L24-L23 -> 32
B23: Clients | C23: 45 | D23: jours | H23: Stocks | I23: =-P6*C21/360 -> 75 | K23: Résultat | L23: =+L7 -> 19
H24: Clients | I24: =+P5*C23/360 -> 300 | K24: Emprunt | L24: =+L8 -> 219
H25: Tréso | I25: =+I9 -> 40 | K25: Fourn | L25: =-P6*C22/360 -> 225
H26: Total | I26: =SUM(I22:I25) -> 495 | K26: Total | L26: =+I26 -> 495
H28: Résultat après impôt société | L28: =+P13 -> 21
H29: / Capital | L29: =+L22 -> 32
H30: = Rentabilité pour l'actionnaire | L30: =+L28/L29 -> 0.65625
H32: Page 225 | O32: Page 225
H33: Bilan en fin d'année, variante totale | O33: Compte de résultat de l'année, variante totale
H34: Emplois | K34: Ressources | O34: Chiffre d'affaires | P34: =+C5 -> 2400
H35: Immo | I35: =+C14+P38 -> 80 | K35: Capital | L35: =+L39-L38-L37-L36 -> 138 | O35: - Achats | P35: =+P36-P34 -> -1800
H36: Stocks | I36: =-P35*C21/360 -> 75 | K36: Résultat | L36: =+P44 -> 22 | O36: = Marge | P36: =+C5*C17 -> 600
H37: Clients | I37: =+C5*C23/360 -> 300 | K37: Emprunt | L37: =ROUND(((C14*C8)+((I23+I24-L25)*C9))*(C11-1)/C11,0) -> 100 | O37: - Frais généraux | P37: =-C13 -> -550
H38: Tréso | I38: =+C18*I37 -> 30 | K38: Fourn. | L38: =-P35*C22/360 -> 225 | O38: - Amortissements | P38: =-C14/E14 -> -10
H39: Total | I39: =SUM(I35:I38) -> 485 | K39: Total | L39: =+I39 -> 485 | O39: - Frais financiers | P39: =-((C14*C8)+((I23+I24-L25)*C9))*C10 -> -4.2
O40: = Résultat avant impôt société | P40: =ROUND(SUM(P36:P39),0) -> 36
H41: Résultat après impôt société | L41: =+P42 -> 24 | O41: - Impôt société | P41: =-P40*C15 -> -12
H42: / Capital | L42: =+L35 -> 138 | O42: = Résultat après impôt société | P42: =ROUND(SUM(P40:P41),0) -> 24
H43: = Rentabilité pour l'actionnaire | L43: =+L41/L42 -> 0.1739130435 | O43: - Dividendes | P43: =ROUND(-P42*C7,0) -> -2
O44: = Résultat après distributions | P44: =SUM(P42:P43) -> 22

Sheet Cas investissement
B2: Page 180 | G2: Page 195
B3: Investissement | C3: 300 | D3: K€ | G3: Retour sur investissement | I3: =+C49&" ans "&C50&" mois" -> 4 ans 5 mois
C4: 5 | D4: ans d'amortissement | G4: Taux interne de rentabilité | I4: =+IRR(C39:G39) -> 0.05073597334
B5: Apport | C5: 250 | D5: K€
B6: Emprunt | C6: =+C3-C5 -> 50 | D6: K€
C7: 5 | D7: ans
C8: 0.025 | D8: par an
B11: En K€ | C11: Années | H11: Total
C12: 1 | D12: 2 | E12: 3 | F12: 4 | G12: 5
B13: Recettes d'exploitation | C13: 100 | D13: 120 | E13: 140 | F13: 120 | G13: 100 | H13: =SUM(C13:G13) -> 580
B14: Dépenses d'exploitation | C14: 80 | D14: 30 | E14: 30 | F14: 30 | G14: 30 | H14: =SUM(C14:G14) -> 200
B16: Page 182
B17: Compte de résultat (en K€)
B18: En K€ | C18: Années | H18: Total
C19: 1 | D19: 2 | E19: 3 | F19: 4 | G19: 5
B20: Produits d'exploitation | C20: =+'Cas investissement'!C13 -> 100 | D20: =+'Cas investissement'!D13 -> 120 | E20: =+'Cas investissement'!E13 -> 140 | F20: =+'Cas investissement'!F13 -> 120 | G20: =+'Cas investissement'!G13 -> 100 | H20: =SUM(C20:G20) -> 580
B21: - Charges d'exploitation | C21: =-'Cas investissement'!C14 -> -80 | D21: =-'Cas investissement'!D14 -> -30 | E21: =-'Cas investissement'!E14 -> -30 | F21: =-'Cas investissement'!F14 -> -30 | G21: =-'Cas investissement'!G14 -> -30 | H21: -200
B22: - Amortissement | C22: =-+'Cas investissement'!$C$3/'Cas investissement'!$C$4 -> -60 | D22: =-+'Cas investissement'!$C$3/'Cas investissement'!$C$4 -> -60 | E22: =-+'Cas investissement'!$C$3/'Cas investissement'!$C$4 -> -60 | F22: =-+'Cas investissement'!$C$3/'Cas investissement'!$C$4 -> -60 | G22: =-+'Cas investissement'!$C$3/'Cas investissement'!$C$4 -> -60 | H22: -300
B23: - Intérêts d'emprunt | C23: =IPMT('Cas investissement'!$C$8,C19,'Cas investissement'!$C$7,'Cas investissement'!$C$6) -> -1.25 | D23: =IPMT('Cas investissement'!$C$8,D19,'Cas investissement'!$C$7,'Cas investissement'!$C$6) -> -1.012191424 | E23: =IPMT('Cas investissement'!$C$8,E19,'Cas investissement'!$C$7,'Cas investissement'!$C$6) -> -0.7684376333 | F23: =IPMT('Cas investissement'!$C$8,F19,'Cas investissement'!$C$7,'Cas investissement'!$C$6) -> -0.518589998 | G23: =IPMT('Cas investissement'!$C$8,G19,'Cas investissement'!$C$7,'Cas investissement'!$C$6) -> -0.2624961718 | H23: -3.811715227
B24: - Intérêts trésorerie | C24: =-'Cas investissement'!$C$5*'Cas investissement'!$C$8 -> -6.25 | D24: =-'Cas investissement'!$C$5*'Cas investissement'!$C$8 -> -6.25 | E24: =-'Cas investissement'!$C$5*'Cas investissement'!$C$8 -> -6.25 | F24: =-'Cas investissement'!$C$5*'Cas investissement'!$C$8 -> -6.25 | G24: =-'Cas investissement'!$C$5*'Cas investissement'!$C$8 -> -6.25 | H24: -31.25
B25: = Résultat avant impôt | C25: =SUM(C20:C24) -> -47.5 | D25: =SUM(D20:D24) -> 22.73780858 | E25: =SUM(E20:E24) -> 42.98156237 | F25: =SUM(F20:F24) -> 23.23141 | G25: =SUM(G20:G24) -> 3.487503828 | H25: 44.93828477
B26: - Impôt sur les sociétés | C26: =-C25/3 -> 15.83333333 | D26: =-D25/3 -> -7.579269525 | E26: =-E25/3 -> -14.32718746 | F26: =-F25/3 -> -7.743803334 | G26: =-G25/3 -> -1.162501276 | H26: -14.97942826
B27: = Résultat après impôt | C27: =SUM(C25:C26) -> -31.66666667 | D27: =SUM(D25:D26) -> 15.15853905 | E27: =SUM(E25:E26) -> 28.65437491 | F27: =SUM(F25:F26) -> 15.48760667 | G27: =SUM(G25:G26) -> 2.325002552 | H27: 29.95885652
B29: Page 184
B30: Tableau des flux de trésorerie (en K€)
B31: En K€ | C31: Années | H31: Total
C32: 1 | D32: 2 | E32: 3 | F32: 4 | G32: 5
B33: Recettes d'exploitation | C33: =+'Cas investissement'!C13 -> 100 | D33: =+'Cas investissement'!D13 -> 120 | E33: =+'Cas investissement'!E13 -> 140 | F33: =+'Cas investissement'!F13 -> 120 | G33: =+'Cas investissement'!G13 -> 100 | H33: =SUM(C33:G33) -> 580
B34: - Dépenses d'exploitation | C34: =-'Cas investissement'!C14 -> -80 | D34: =-'Cas investissement'!D14 -> -30 | E34: =-'Cas investissement'!E14 -> -30 | F34: =-'Cas investissement'!F14 -> -30 | G34: =-'Cas investissement'!G14 -> -30 | H34: -200
B35: - Apport | C35: =-'Cas investissement'!C5 -> -250 | D35: 0 | E35: 0 | F35: 0 | G35: 0 | H35: -250
B36: - Remboursement emprunt | C36: =PMT('Cas investissement'!$C$8,'Cas investissement'!$C$7,'Cas investissement'!$C$6) -> -10.76234305 | D36: =PMT('Cas investissement'!$C$8,'Cas investissement'!$C$7,'Cas investissement'!$C$6) -> -10.76234305 | E36: =PMT('Cas investissement'!$C$8,'Cas investissement'!$C$7,'Cas investissement'!$C$6) -> -10.76234305 | F36: =PMT('Cas investissement'!$C$8,'Cas investissement'!$C$7,'Cas investissement'!$C$6) -> -10.76234305 | G36: =PMT('Cas investissement'!$C$8,'Cas investissement'!$C$7,'Cas investissement'!$C$6) -> -10.76234305 | H36: -53.81171523
B37: - Intérêts trésorerie | C37: =-'Cas investissement'!$C$5*'Cas investissement'!$C$8 -> -6.25 | D37: =-'Cas investissement'!$C$5*'Cas investissement'!$C$8 -> -6.25 | E37: =-'Cas investissement'!$C$5*'Cas investissement'!$C$8 -> -6.25 | F37: =-'Cas investissement'!$C$5*'Cas investissement'!$C$8 -> -6.25 | G37: =-'Cas investissement'!$C$5*'Cas investissement'!$C$8 -> -6.25 | H37: -31.25
B38: - Impôt sur les sociétés | C38: 0 | D38: 0 | E38: -6 | F38: =+'Cas investissement'!F26 -> -7.743803334 | G38: =+'Cas investissement'!G26 -> -1.162501276 | H38: -14.90630461
B39: = Flux net de trésorerie | C39: =SUM(C33:C38) -> -247.012343 | D39: =SUM(D33:D38) -> 72.98765695 | E39: =SUM(E33:E38) -> 86.98765695 | F39: =SUM(F33:F38) -> 65.24385362 | G39: =SUM(G33:G38) -> 51.82515568 | H39: 30.03198016
B41: Page 187
B42: Retour sur investissement
C43: Années
B44: En K€ | C44: 1 | D44: 2 | E44: 3 | F44: 4 | G44: 5
B45: Recettes cumulées | C45: =+C33 -> 100 | D45: =+C45+D33 -> 220 | E45: =+D45+E33 -> 360 | F45: 480 | G45: 580
B46: Dépenses cumulées | C46: =-C34-C35-C36-C37-C38 -> 347.012343 | D46: =+C46-D34-D35-D36-D37-D38 -> 394.0246861 | E46: =+D46-E34-E35-E36-E37-E38 -> 447.0370291 | F46: 501.7931755 | G46: 549.9680198
B47: Flux net de trésorerie cumulé | C47: =+C39 -> -247.012343 | D47: =+C47+D39 -> -174.0246861 | E47: =+D47+E39 -> -87.03702914 | F47: -21.79317552 | G47: 30.03198016
B48: Retour sur investissement | C48: =IF(AND(C47>0,B47<0),B44+(-B47/(-B47+C47)),0) -> 0 | D48: =IF(AND(D47>0,C47<0),C44+(-C47/(-C47+D47)),0) -> 0 | E48: =IF(AND(E47>0,D47<0),D44+(-D47/(-D47+E47)),0) -> 0 | F48: =IF(AND(F47>0,E47<0),E44+(-E47/(-E47+F47)),0) -> 0 | G48: =IF(AND(G47>0,F47<0),F44+(-F47/(-F47+G47)),0) -> 4.42051346
B49: Nombre d'années | C49: =TRUNC(SUM(C48:G48),0) -> 4
B50: Nombre de mois | C50: =ROUND((SUM(C48:G48)-C49)*12,0) -> 5
B52: Page 192 | E52: Page 190
B53: VAN pour graphique TIR | E53: Actualisation à 10% des flux de trésorerie
C54: VAN | E54: 0.1 | F54: Année 1 | G54: Année 2 | H54: Année 3 | I54: Année 4 | J54: Année 5 | K54: Total
B55: 0 | C55: =+NPV(B55,$C$39:$G$39) -> 30.03198016 | E55: Année 0 | F55: =+F56/(1+$E$54) -> -224.5454545 | G55: =+G56/(1+$E$54) -> 60.33057851 | H55: =+H56/(1+$E$54) -> 65.36438768 | I55: =+I56/(1+$E$54) -> 44.3958746 | J55: =+J56/(1+$E$54) -> 32.2879088 | K55: =SUM(F55:J55) -> -22.16670496
B56: 0.01 | C56: =+NPV(B56,$C$39:$G$39) -> 23.42011663 | E56: Année 1 | F56: -247 | G56: =+G57/(1+$E$54) -> 66.36363636 | H56: =+H57/(1+$E$54) -> 71.90082645 | I56: =+I57/(1+$E$54) -> 48.83546206 | J56: =+J57/(1+$E$54) -> 35.51669968
B57: 0.02 | C57: 17.16978145 | E57: Année 2 | G57: 73 | H57: =+H58/(1+$E$54) -> 79.09090909 | I57: =+I58/(1+$E$54) -> 53.71900826 | J57: =+J58/(1+$E$54) -> 39.06836965
B58: 0.03 | C58: 11.25924025 | E58: Année 3 | H58: 87 | I58: =+I59/(1+$E$54) -> 59.09090909 | J58: =+J59/(1+$E$54) -> 42.97520661
B59: 0.04 | C59: 5.668253458 | E59: Année 4 | I59: 65 | J59: =+J60/(1+$E$54) -> 47.27272727
B60: 0.05 | C60: 0.3779599815 | E60: Année 5 | J60: 52
B61: 0.06 | C61: -4.629229129
B62: 0.07 | C62: -9.369727803
B63: 0.08 | C63: -13.85886382
B64: 0.09 | C64: -18.11096015
B65: 0.1 | C65: -22.13940955
B66: 0.11 | C66: -25.95674289
B67: 0.12 | C67: -29.57469196
B68: 0.13 | C68: -33.00424714
B69: 0.14 | C69: -36.25571035
B70: 0.15 | C70: -39.33874394
B71: 0.16 | C71: -42.26241552
B72: 0.17 | C72: -45.03523938
B73: 0.18 | C73: -47.6652147
B74: 0.19 | C74: -50.15986078
B75: 0.2 | C75: -52.52624955

Sheet Cas actualisation
B2: Page 189
B3: 0.01 | C3: Avoir de début de période | D3: Intérêts de la période | E3: Avoir de fin de période
B4: Année 1 | C4: 100000 | D4: =+C4*$B$3 -> 1000 | E4: =+C4+D4 -> 101000
B5: Année 2 | C5: =+E4 -> 101000 | D5: =+C5*$B$3 -> 1010 | E5: =+C5+D5 -> 102010
B6: Année 3 | C6: =+E5 -> 102010 | D6: 1020.1 | E6: 103030.1
B7: Année 4 | C7: 103030.1 | D7: 1030.301 | E7: 104060.401
B8: Année 5 | C8: 104060.401 | D8: 1040.60401 | E8: 105101.005
B10: Page 189
B11: Intérêts composés | E11: Actualisation
B12: 0.01 | C12: Avoir de début de période | E12: 0.01 | F12: Avoir de début de période
B13: Année 1 | C13: 100000 | E13: Année 1 | F13: =+F14/(1+$E$12) -> 100000
B14: Année 2 | C14: =+C13*(1+$B$12) -> 101000 | E14: Année 2 | F14: =+F15/(1+$E$12) -> 101000
B15: Année 3 | C15: =+C14*(1+$B$12) -> 102010 | E15: Année 3 | F15: =+F16/(1+$E$12) -> 102010
B16: Année 4 | C16: 103030.1 | E16: Année 4 | F16: =+F17/(1+$E$12) -> 103030.1
B17: Année 5 | C17: 104060.401 | E17: Année 5 | F17: =+C17 -> 104060.401
B19: Page 190
B20: 0.1 | C20: Année 1 | D20: Année 2 | E20: Année 3 | F20: Année 4 | G20: Année 5 | H20: Total
B21: Année 0 | C21: =+C22/(1+$B$20) -> -224.5454545 | D21: =+D22/(1+$B$20) -> 60.33057851 | E21: 65.36438768 | F21: 44.3958746 | G21: 32.2879088 | H21: =SUM(C21:G21) -> -22.16670496
B22: Année 1 | C22: -247 | D22: 66.36363636 | E22: 71.90082645 | F22: 48.83546206 | G22: 35.51669968
B23: Année 2 | D23: 73 | E23: 79.09090909 | F23: 53.71900826 | G23: 39.06836965
B24: Année 3 | E24: 87 | F24: 59.09090909 | G24: 42.97520661
B25: Année 4 | F25: 65 | G25: 47.27272727
B26: Année 5 | G26: 52

Sheet Exercice retour invest € const
B1: Exercice page 197
B2: Corrigé page 226
B3: =+"Valeur actualisée à "&B4*100&"% des flux nets de trésorerie" -> Valeur actualisée à 2,5% des flux nets de trésorerie | J3: Pour vérification, calcul de la VAN | M3: =+NPV(B4,C6,D7,E8,F9,G10) -> 14.1733352
B4: 0.025 | C4: 1 | D4: 2 | E4: 3 | F4: 4 | G4: 5 | H4: Total
B5: 0 | C5: =+C6/(1+$B$4) -> -240.9876518 | D5: =+D6/(1+$B$4) -> 69.47070263 | E5: 80.77668701 | F5: 59.10771126 | G5: 45.80588605 | H5: =SUM(C5:G5) -> 14.1733352
B6: 1 | C6: =+'Cas investissement'!C39 -> -247.012343 | D6: 71.2074702 | E6: 82.79610418 | F6: 60.58540404 | G6: 46.9510332
B7: 2 | D7: =+'Cas investissement'!D39 -> 72.98765695 | E7: 84.86600678 | F7: 62.10003914 | G7: 48.12480903
B8: 3 | E8: =+'Cas investissement'!E39 -> 86.98765695 | F8: 63.65254012 | G8: 49.32792926
B9: 4 | F9: =+'Cas investissement'!F39 -> 65.24385362 | G9: =+G10/(1+$B$4) -> 50.56112749
B10: 5 | G10: =+'Cas investissement'!G39 -> 51.82515568
B12: Retour sur investissement
C13: Années
B14: En K€ | C14: 1 | D14: 2 | E14: 3 | F14: 4 | G14: 5
B15: Flux net de trésorerie cumulé | C15: =+C5 -> -240.9876518 | D15: =+C15+D5 -> -171.5169491 | E15: =+D15+E5 -> -90.74026211 | F15: -31.63255086 | G15: 14.1733352
B16: Retour sur investissement | C16: =IF(AND(C15>0,B15<0),B14+(-B15/(-B15+C15)),0) -> 0 | D16: =IF(AND(D15>0,C15<0),C14+(-C15/(-C15+D15)),0) -> 0 | E16: =IF(AND(E15>0,D15<0),D14+(-D15/(-D15+E15)),0) -> 0 | F16: =IF(AND(F15>0,E15<0),E14+(-E15/(-E15+F15)),0) -> 0 | G16: =IF(AND(G15>0,F15<0),F14+(-F15/(-F15+G15)),0) -> 4.690578299
B18: Nombre d'années | C18: =TRUNC(SUM(C16:G16),0) -> 4
B19: Nombre de mois | C19: =ROUND((SUM(C16:G16)-C18)*12,0) -> 8
B20: Retour sur investissement | C20: =+C18&" ans "&C19&" mois" -> 4 ans 8 mois

Sheet Exercice projet réfection
B1: Exercice page 197
B2: Corrigé pages 227 à 228
B3: Page 227 | G3: Page 228
B4: investissement | C4: 125 | D4: K€ | G4: Retour sur investissement | I4: =+C50&" ans "&C51&" mois" -> 3 ans 11 mois
C5: 5 | D5: ans d'amortissement | G5: Taux interne de rentabilité | I5: =+IRR(C40:G40) -> 0.1425182936
B6: apport | C6: 125 | D6: K€
B7: emprunt | C7: =+C4-C6 -> 0 | D7: K€
C8: 5 | D8: ans
C9: 0.025 | D9: par an
B12: En K€ | C12: Années | H12: Total
C13: 1 | D13: 2 | E13: 3 | F13: 4 | G13: 5
B14: Recettes d'exploitation | C14: 40 | D14: 40 | E14: 40 | F14: 40 | G14: 40 | H14: =SUM(C14:G14) -> 200
B15: Dépenses d'exploitation | C15: 5 | D15: 0 | E15: 0 | F15: 0 | G15: 0 | H15: =SUM(C15:G15) -> 5
B17: Page 227
B18: Compte de résultat (en K€)
B19: En K€ | C19: Années | H19: Total
C20: 1 | D20: 2 | E20: 3 | F20: 4 | G20: 5
B21: Produits d'exploitation | C21: =+'Exercice projet réfection'!C14 -> 40 | D21: =+'Exercice projet réfection'!D14 -> 40 | E21: =+'Exercice projet réfection'!E14 -> 40 | F21: =+'Exercice projet réfection'!F14 -> 40 | G21: =+'Exercice projet réfection'!G14 -> 40 | H21: =SUM(C21:G21) -> 200
B22: - Charges d'exploitation | C22: =-'Exercice projet réfection'!C15 -> -5 | D22: =-'Exercice projet réfection'!D15 -> 0 | E22: =-'Exercice projet réfection'!E15 -> 0 | F22: =-'Exercice projet réfection'!F15 -> 0 | G22: =-'Exercice projet réfection'!G15 -> 0 | H22: -5
B23: - Amortissement | C23: =-+'Exercice projet réfection'!$C$4/'Exercice projet réfection'!$C$5 -> -25 | D23: =-+'Exercice projet réfection'!$C$4/'Exercice projet réfection'!$C$5 -> -25 | E23: =-+'Exercice projet réfection'!$C$4/'Exercice projet réfection'!$C$5 -> -25 | F23: =-+'Exercice projet réfection'!$C$4/'Exercice projet réfection'!$C$5 -> -25 | G23: =-+'Exercice projet réfection'!$C$4/'Exercice projet réfection'!$C$5 -> -25 | H23: -125
B24: - Intérêts d'emprunt | C24: =IPMT('Exercice projet réfection'!$C$9,C20,'Exercice projet réfection'!$C$8,'Exercice projet réfection'!$C$7) -> 0 | D24: =IPMT('Exercice projet réfection'!$C$9,D20,'Exercice projet réfection'!$C$8,'Exercice projet réfection'!$C$7) -> 0 | E24: =IPMT('Exercice projet réfection'!$C$9,E20,'Exercice projet réfection'!$C$8,'Exercice projet réfection'!$C$7) -> 0 | F24: =IPMT('Exercice projet réfection'!$C$9,F20,'Exercice projet réfection'!$C$8,'Exercice projet réfection'!$C$7) -> 0 | G24: =IPMT('Exercice projet réfection'!$C$9,G20,'Exercice projet réfection'!$C$8,'Exercice projet réfection'!$C$7) -> 0 | H24: 0
B25: - Intérêts trésorerie | C25: =-'Exercice projet réfection'!$C$6*'Exercice projet réfection'!$C$9 -> -3.125 | D25: =-'Exercice projet réfection'!$C$6*'Exercice projet réfection'!$C$9 -> -3.125 | E25: =-'Exercice projet réfection'!$C$6*'Exercice projet réfection'!$C$9 -> -3.125 | F25: =-'Exercice projet réfection'!$C$6*'Exercice projet réfection'!$C$9 -> -3.125 | G25: =-'Exercice projet réfection'!$C$6*'Exercice projet réfection'!$C$9 -> -3.125 | H25: -15.625
B26: = Résultat avant impôt | C26: =SUM(C21:C25) -> 6.875 | D26: =SUM(D21:D25) -> 11.875 | E26: =SUM(E21:E25) -> 11.875 | F26: =SUM(F21:F25) -> 11.875 | G26: =SUM(G21:G25) -> 11.875 | H26: 54.375
B27: - Impôt sur les sociétés | C27: =-C26/3 -> -2.291666667 | D27: =-D26/3 -> -3.958333333 | E27: =-E26/3 -> -3.958333333 | F27: =-F26/3 -> -3.958333333 | G27: =-G26/3 -> -3.958333333 | H27: -18.125
B28: = Résultat après impôt | C28: =SUM(C26:C27) -> 4.583333333 | D28: =SUM(D26:D27) -> 7.916666667 | E28: =SUM(E26:E27) -> 7.916666667 | F28: =SUM(F26:F27) -> 7.916666667 | G28: =SUM(G26:G27) -> 7.916666667 | H28: 36.25
B30: Page 227
B31: Tableau des flux de trésorerie (en K€)
B32: En K€ | C32: Années | H32: Total
C33: 1 | D33: 2 | E33: 3 | F33: 4 | G33: 5
B34: Recettes d'exploitation | C34: =+'Exercice projet réfection'!C14 -> 40 | D34: =+'Exercice projet réfection'!D14 -> 40 | E34: =+'Exercice projet réfection'!E14 -> 40 | F34: =+'Exercice projet réfection'!F14 -> 40 | G34: =+'Exercice projet réfection'!G14 -> 40 | H34: =SUM(C34:G34) -> 200
B35: - Dépenses d'exploitation | C35: =-'Exercice projet réfection'!C15 -> -5 | D35: =-'Exercice projet réfection'!D15 -> 0 | E35: =-'Exercice projet réfection'!E15 -> 0 | F35: =-'Exercice projet réfection'!F15 -> 0 | G35: =-'Exercice projet réfection'!G15 -> 0 | H35: -5
B36: - Apport | C36: =-'Exercice projet réfection'!C6 -> -125 | D36: 0 | E36: 0 | F36: 0 | G36: 0 | H36: -125
B37: - Remboursement emprunt | C37: =PMT('Exercice projet réfection'!$C$9,'Exercice projet réfection'!$C$8,'Exercice projet réfection'!$C$7) -> 0 | D37: =PMT('Exercice projet réfection'!$C$9,'Exercice projet réfection'!$C$8,'Exercice projet réfection'!$C$7) -> 0 | E37: =PMT('Exercice projet réfection'!$C$9,'Exercice projet réfection'!$C$8,'Exercice projet réfection'!$C$7) -> 0 | F37: =PMT('Exercice projet réfection'!$C$9,'Exercice projet réfection'!$C$8,'Exercice projet réfection'!$C$7) -> 0 | G37: =PMT('Exercice projet réfection'!$C$9,'Exercice projet réfection'!$C$8,'Exercice projet réfection'!$C$7) -> 0 | H37: 0
B38: - Intérêts trésorerie | C38: =-'Exercice projet réfection'!$C$6*'Exercice projet réfection'!$C$9 -> -3.125 | D38: =-'Exercice projet réfection'!$C$6*'Exercice projet réfection'!$C$9 -> -3.125 | E38: =-'Exercice projet réfection'!$C$6*'Exercice projet réfection'!$C$9 -> -3.125 | F38: =-'Exercice projet réfection'!$C$6*'Exercice projet réfection'!$C$9 -> -3.125 | G38: =-'Exercice projet réfection'!$C$6*'Exercice projet réfection'!$C$9 -> -3.125 | H38: -15.625
B39: - Impôt sur les sociétés | C39: =+'Exercice projet réfection'!C27 -> -2.291666667 | D39: =+'Exercice projet réfection'!D27 -> -3.958333333 | E39: =+'Exercice projet réfection'!E27 -> -3.958333333 | F39: =+'Exercice projet réfection'!F27 -> -3.958333333 | G39: =+'Exercice projet réfection'!G27 -> -3.958333333 | H39: -18.125
B40: = Flux net de trésorerie | C40: =SUM(C34:C39) -> -95.41666667 | D40: =SUM(D34:D39) -> 32.91666667 | E40: =SUM(E34:E39) -> 32.91666667 | F40: =SUM(F34:F39) -> 32.91666667 | G40: =SUM(G34:G39) -> 32.91666667 | H40: 36.25
B42: Page 228
B43: Retour sur investissement
C44: Années
C45: 1 | D45: 2 | E45: 3 | F45: 4 | G45: 5
B46: Recettes cumulées | C46: =+C34 -> 40 | D46: =+C46+D34 -> 80 | E46: =+D46+E34 -> 120 | F46: 160 | G46: 200
B47: Dépenses cumulées | C47: =-C35-C36-C37-C38-C39 -> 135.4166667 | D47: =+C47-D35-D36-D37-D38-D39 -> 142.5 | E47: =+D47-E35-E36-E37-E38-E39 -> 149.5833333 | F47: 156.6666667 | G47: 163.75
B48: Flux net de trésorerie cumulé | C48: =+C40 -> -95.41666667 | D48: =+C48+D40 -> -62.5 | E48: =+D48+E40 -> -29.58333333 | F48: 3.333333333 | G48: 36.25
B49: Retour sur investissement | C49: =IF(AND(C48>0,B48<0),B45+(-B48/(-B48+C48)),0) -> 0 | D49: =IF(AND(D48>0,C48<0),C45+(-C48/(-C48+D48)),0) -> 0 | E49: =IF(AND(E48>0,D48<0),D45+(-D48/(-D48+E48)),0) -> 0 | F49: =IF(AND(F48>0,E48<0),E45+(-E48/(-E48+F48)),0) -> 3.898734177 | G49: =IF(AND(G48>0,F48<0),F45+(-F48/(-F48+G48)),0) -> 0
B50: Nombre d'années | C50: =TRUNC(SUM(C49:G49),0) -> 3
B51: Nombre de mois | C51: =ROUND((SUM(C49:G49)-C50)*12,0) -> 11
B53: Page 228
B54: VAN pour graphique TIR
C55: VAN
B56: 0 | C56: =+NPV(B56,$C$40:$G$40) -> 36.25
B57: 0.01 | C57: =+NPV(B57,$C$40:$G$40) -> 32.69607202
B58: 0.02 | C58: 29.33438202
B59: 0.03 | C59: 26.15322566
B60: 0.04 | C60: 23.14171583
B61: 0.05 | C61: 20.28971819
B62: 0.06 | C62: 17.58779222
B63: 0.07 | C63: 15.02713756
B64: 0.08 | C64: 12.59954489
B65: 0.09 | C65: 10.29735103
B66: 0.1 | C66: 8.113397826
B67: 0.11 | C67: 6.040994549
B68: 0.12 | C68: 4.073883327
B69: 0.13 | C69: 2.206207492
B70: 0.14 | C70: 0.4324824764
B71: 0.15 | C71: -1.252430922
B72: 0.16 | C72: -2.853351142
B73: 0.17 | C73: -4.374798497
B74: 0.18 | C74: -5.821016041
B75: 0.19 | C75: -7.195988798
B76: 0.2 | C76: -8.503461505

Sheet Corrigé questionnaire
B1: Exercice page 201
B2: Corrigé page 231
B3: Bilan au 31/12/N | G3: Compte de résultat année N
B4: Actif | D4: Passif | G4: Chiffre d'affaires | H4: 1000
B5: Immo | C5: 1025 | D5: Capital | E5: 800 | G5: - Achats | H5: -500
B6: Stocks | C6: 125 | D6: Résultats antérieurs | G6: - Salaires | H6: -250
B7: Clients | C7: 70 | D7: Résultat exercice | G7: - Amortissements | H7: -200
B8: Tréso | C8: -20 | D8: Emprunt | E8: 150 | G8: = Résultat
B9: Total | D9: Fournisseurs | E9: 75
D10: Total
B12: Bilan au 31/12/N | G12: Compte de résultat année N
B13: Actif | D13: Passif | G13: Chiffre d'affaires | H13: =+H4 -> 1000
B14: Immo | C14: =+C5 -> 1025 | D14: Capital | E14: =+E5 -> 800 | G14: - Achats | H14: =+H5 -> -500
B15: Stocks | C15: =+C6 -> 125 | D15: Résultats antérieurs | E15: =+E19-E14-E16-E17-E18 -> 125 | G15: - Salaires | H15: -250
B16: Clients | C16: 70 | D16: Résultat exercice | E16: =+H17 -> 50 | G16: - Amortissements | H16: -200
B17: Tréso | C17: -20 | D17: Emprunts | E17: =+E8 -> 150 | G17: = Résultat | H17: =+H13+H14+H15+H16 -> 50
B18: Total | C18: =SUM(C14:C17) -> 1200 | D18: Fournisseurs | E18: =+E9 -> 75
D19: Total | E19: =+C18 -> 1200
